{"text_format":"1","workbook":"xlsx","n_sheets":3,"sheets":["Calendar","data","FY20_sped-prices_combined file"],"not_rendered":{"charts":0,"images":0,"macros":1,"external_links":0,"defined_names":7,"comments":3,"pivot_tables":0},"unopened":[],"bounds":{"document_bytes":16777216,"sheet_cells":100000,"rows_first":2000,"rows_last":500,"rows_between":2000,"halvings":0,"cell_chars":16384,"cell_head_chars":4096},"cells_cut":0,"cells_raw":0,"read":"whole","date_system":"1900"}

{"sheet":"Calendar","index":0,"n_rows":380,"n_cols":35,"rows_kept":380,"cut":false,"hidden":false,"merged":[[2,19,2,25],[33,10,33,16],[33,19,33,25],[5,16,5,17],[6,16,6,17],[24,19,24,25],[7,16,7,17],[12,2,12,26],[10,19,10,25],[24,10,24,16],[15,19,15,25],[8,7,8,10],[15,1,15,7],[33,1,33,7],[24,1,24,7],[15,10,15,16],[62,1,62,7],[42,1,42,7],[42,10,42,16],[55,21,55,25],[56,21,56,25],[51,22,51,23],[58,11,58,16],[61,1,61,26],[55,11,55,16],[58,21,58,25],[57,11,57,16],[42,19,42,25],[57,21,57,25],[54,11,54,16],[56,11,56,16]]}
[null,null,null,null,null,null,"FY2020 - 2021 Private School Calendar"]
[null,"SAVE TO YOUR HARD DRIVE FIRST, DO NOT WORK ON THE WEB! "]
[1,"Program Information: (Select your program code from the dropdown)",null,null,null,null,null,null,null,null,null,null,null,null,null,null,null,null,null,"June 2020"]
[null,null,null,null,null,null,null,null,1,null,null,null,null,null,null,null,null,null,null,"S","M","T","W","T","F","S"]
[null,null,null,null,null,null,null,null,null,null,null,null,null,null,null,null,null,null,null,null,1,2,3,4,5,6,"June 2020"]
[null,"Program Code:",null,null,null,null,null,null,null,null,null,null,"Annual Rate: ",null,null,null,{"$f":"IF($I$6=\"\",\"\",VLOOKUP($I$6,rates,5))","v":""},null,null,7,8,9,10,11,12,13,"Total Days"]
[null,"Private School Name:",null,null,null,null,null,{"$f":"IF($I$6=\"\",\"\",VLOOKUP($I$6,rates,3))","v":""},null,null,null,null,"Daily Rate:",null,null,null,{"$f":"IF($I$6=\"\",\"\",VLOOKUP($I$6,rates,6))","v":""},null,null,14,15,16,17,18,19,20,"IN Session"]
[null,"Program Name:",null,null,null,null,null,{"$f":"IF($I$6=\"\",\"\",VLOOKUP($I$6,rates,4))","v":""},null,null,null,null,"Program Type:",null,null,null,{"$f":"IF($I$6=\"\",\"\",VLOOKUP($I$6,rates,2))","v":""},null,null,21,22,23,24,25,26,27,{"$f":"IF(AND(I6<>\"\",Q8=\"Summer\"),COUNTA(T5:Z10),0)","v":0}]
[null,"OSD Approved Total Days:",null,null,null,null,null,{"$f":"IF($I$6=\"\",\"\",IF(VLOOKUP($I$6,rates,7)=\"\",\"No Calendar\",VLOOKUP($I$6,rates,7)))","v":""},null,null,null,null,null,null,null,null,null,null,null,28,29,30]
[null,null,null,null,null,null,null,null,null," "]
[2,"Calendar Information:",null,null,null,null,null,null,null,null,null,null,null,null,null,null,null,null,null,"Note: For summer programs operating in June 2020 - Delete the dates school is NOT open."]
[null,"A. ","If program operates 365 days, complete Other Information below and proceed to saving the file instructions.",null,null,null,null,null,null,null,null,null,null,null,null,null,null,null,null,null,null,null,null,null,null,null,null,null,null,null,null,null,null,null,{"$f":"IF(W52=AI13,\"\",\"Not Match\")","v":""}]
[null,"B. ","Programs operating less than 365 days, delete dates school is not in session. Complete Other Information and proceed to saving the file instructions below.  (ONLY for those programs operating summer programs starting in June 2020 see \"Note\" above)",null,null,null,null,null,null,null,null,null,null,null,null,null,null,null,null,null,null,null,null,null,null,null,null,null,null,null,null,null,null,"Total Days:",{"$f":"SUM(AI16:AJ381)","v":365}]
[]
[null,null,null,null,null,null,null,null,null,null,null,null,null,null,null,null,null,null,null,null,null,null,null,null,null,null,null,null,null,null,null,"Col","Row",{"$f":"I6","v":0}]
[null,"July 2020",null,null,null,null,null,null,null,null,"August 2020",null,null,null,null,null,null,null,null,"September 2020",null,null,null,null,null,null,null,null,null,null,"2020-07-01","E",18,{"$f":"IF(INDIRECT(AF16&AG16)=\"\",\"\",AE16)","v":"2020-07-01"},{"$f":"IF(AH16=\"\",0,1)","v":1}]
[null,"S","M","T","W","T","F","S",null,null,"S","M","T","W","T","F","S",null,null,"S","M","T","W","T","F","S",null,null,null,null,"2020-07-02","F",18,{"$f":"IF(INDIRECT(AF17&AG17)=\"\",\"\",AE17)","v":"2020-07-02"},{"$f":"IF(AH17=\"\",0,1)","v":1}]
[null,null,null,null,1,2,3,4,null,null,null,null,null,null,null,null,1,null,null,null,null,1,2,3,4,5,null,null,null,null,"2020-07-03","G",18,"2020-07-03",1]
[null,5,6,7,8,9,10,11,"July 2020",null,2,3,4,5,6,7,8,"Aug 2020",null,6,7,8,9,10,11,12,"Sept 2020",null,null,null,"2020-07-04","H",18,"2020-07-04",1]
[null,12,13,14,15,16,17,18,"Total Days",null,9,10,11,12,13,14,15,"Total Days",null,13,14,15,16,17,18,19,"Total Days",null,null,null,"2020-07-05","B",19,"2020-07-05",1]
[null,19,20,21,22,23,24,25,"in Session",null,16,17,18,19,20,21,22,"in Session",null,20,21,22,23,24,25,26,"in Session",null,null,null,"2020-07-06","C",19,"2020-07-06",1]
[null,26,27,28,29,30,31,null,{"$f":"COUNT(B18:H23)","v":31},null,23,24,25,26,27,28,29,{"$f":"COUNT(K18:Q23)","v":31},null,27,28,29,30,null,null,null,{"$f":"COUNT(T18:Z23)","v":30},null,null,null,"2020-07-07","D",19,"2020-07-07",1]
[null,null,null,null,null,null,null,null,null,null,30,31,null,null,null,null,null,null,null,null,null,null,null,null,null,null,null,null,null,null,"2020-07-08","E",19,"2020-07-08",1]
[null,null,null,null,null,null,null,null,null,null,null,null,null,null,null,null,null,null,null,null,null,null,null,null,null,null,null,null,null,null,"2020-07-09","F",19,"2020-07-09",1]
[null,"October 2020",null,null,null,null,null,null,null,null,"November 2020",null,null,null,null,null,null,null,null,"December 2020",null,null,null,null,null,null,null,null,null,null,"2020-07-10","G",19,"2020-07-10",1]
[null,"S","M","T","W","T","F","S",null,null,"S","M","T","W","T","F","S",null,null,"S","M","T","W","T","F","S",null,null,null,null,"2020-07-11","H",19,"2020-07-11",1]
[null,null,null,null,null,1,2,3,null,null,1,2,3,4,5,6,7,null,null,null,null,1,2,3,4,5,null,null,null,null,"2020-07-12","B",20,"2020-07-12",1]
[null,4,5,6,7,8,9,10,"Oct 2020",null,8,9,10,11,12,13,14,"Nov 2020",null,6,7,8,9,10,11,12,"Dec 2020",null,null,null,"2020-07-13","C",20,"2020-07-13",1]
[null,11,12,13,14,15,16,17,"Total Days",null,15,16,17,18,19,20,21,"Total Days",null,13,14,15,16,17,18,19,"Total Days",null,null,null,"2020-07-14","D",20,"2020-07-14",1]
[null,18,19,20,21,22,23,24,"in Session",null,22,23,24,25,26,27,28,"in Session",null,20,21,22,23,24,25,26,"in Session",null,null,null,"2020-07-15","E",20,"2020-07-15",1]
[null,25,26,27,28,29,30,31,{"$f":"COUNT(B27:H32)","v":31},null,29,30,null,null,null,null,null,{"$f":"COUNT(K27:Q32)","v":30},null,27,28,29,30,31,null,null,{"$f":"COUNT(T27:Z32)","v":31},null,null,null,"2020-07-16","F",20,"2020-07-16",1]
[null,null,null,null,null,null,null,null,null,null,null,null,null,null,null,null,null,null,null,null,null,null,null,null,null,null,null,null,null,null,"2020-07-17","G",20,"2020-07-17",1]
[null,null,null,null,null,null,null,null,null,null,null,null,null,null,null,null,null,null,null,null,null,null,null,null,null,null,null,null,null,null,"2020-07-18","H",20,"2020-07-18",1]
[null,"January 2021",null,null,null,null,null,null,null,null,"Feburary 2021",null,null,null,null,null,null,null,null,"March 2021",null,null,null,null,null,null,null,null,null,null,"2020-07-19","B",21,"2020-07-19",1]
[null,"S","M","T","W","T","F","S",null,null,"S","M","T","W","T","F","S",null,null,"S","M","T","W","T","F","S",null,null,null,null,"2020-07-20","C",21,"2020-07-20",1]
[null,null,null,null,null,null,1,2,null,7,null,1,2,3,4,5,6,null,null,null,1,2,3,4,5,6,null,null,null,null,"2020-07-21","D",21,"2020-07-21",1]
[null,3,4,5,6,7,8,9,"Jan 2021",null,7,8,9,10,11,12,13,"Feb 2021",null,7,8,9,10,11,12,13,"Mar 2021",null,null,null,"2020-07-22","E",21,"2020-07-22",1]
[null,10,11,12,13,14,15,16,"Total Days",null,14,15,16,17,18,19,20,"Total Days",null,14,15,16,17,18,19,20,"Total Days",null,null,null,"2020-07-23","F",21,"2020-07-23",1]
[null,17,18,19,20,21,22,23,"in Session",null,21,22,23,24,25,26,27,"in Session",null,21,22,23,24,25,26,27,"in Session",null,null,null,"2020-07-24","G",21,"2020-07-24",1]
[null,24,25,26,27,28,29,30,{"$f":"COUNT(B36:H41)","v":31},null,28,null,null,null,null,null,null,{"$f":"COUNT(K36:Q41)","v":28},null,28,29,30,31,null,null,null,{"$f":"COUNT(T36:Z41)","v":31},null,null,null,"2020-07-25","H",21,"2020-07-25",1]
[null,31,null,null,null,null,null,null,null,null,null,null,null,null,null,null,null,null,null,null,null,null,null,null,null,null,null,null,null,null,"2020-07-26","B",22,"2020-07-26",1]
[null,null,null,null,null,null,null,null,null,null,null,null,null,null,null,null,null,null,null,null,null,null,null,null,null,null,null,null,null,null,"2020-07-27","C",22,"2020-07-27",1]
[null,"April 2021",null,null,null,null,null,null,null,null,"May 2021",null,null,null,null,null,null,null,null,"June 2021",null,null,null,null,null,null,null,null,null,null,"2020-07-28","D",22,"2020-07-28",1]
[null,"S","M","T","W","T","F","S",null,null,"S","M","T","W","T","F","S",null,null,"S","M","T","W","T","F","S",null,null,null,null,"2020-07-29","E",22,"2020-07-29",1]
[null,null,null,null,null,1,2,3,null,null,null,null,null,null,null,null,1,null,null,null,null,1,2,3,4,5,null,null,null,null,"2020-07-30","F",22,"2020-07-30",1]
[null,4,5,6,7,8,9,10,"April 2021",null,2,3,4,5,6,7,8,"May 2021",null,6,7,8,9,10,11,12,"June 2021",null,null,null,"2020-07-31","G",22,"2020-07-31",1]
[null,11,12,13,14,15,16,17,"Total Days",null,9,10,11,12,13,14,15,"Total Days",null,13,14,15,16,17,18,19,"Total Days",null,null,null,"2020-08-01","Q",18,"2020-08-01",1]
[null,18,19,20,21,22,23,24,"in Session",null,16,17,18,19,20,21,22,"in Session",null,20,21,22,23,24,25,26,"In Session",null,null,null,"2020-08-02","K",19,"2020-08-02",1]
[null,25,26,27,28,29,30,null,{"$f":"COUNT(B45:H50)","v":30},null,23,24,25,26,27,28,29,{"$f":"COUNT(K45:Q50)","v":31},null,27,28,29,30,null,null,null,{"$f":"COUNT(T45:Z50)","v":30},null,null,null,"2020-08-03","L",19,"2020-08-03",1]
[null,null,null,null,null,null,null,null,null,null,30,31,null,null,null,null,null,null,null,null,null,null,null,null,null,null,null,null,null,null,"2020-08-04","M",19,"2020-08-04",1]
[null,null,null,null,null,null,null,null,null,null,null,null,null,null,null,null,null,null,null,null,null,null,null,null,null,null,null,"  ",null,null,"2020-08-05","N",19,"2020-08-05",1]
[null,{"$f":"AA8+I22+R22+AA22+I31+R31+AA31+I40+R40+AA40+I49+R49+AA49","v":365},null,null,null,null,null,null,"Grand Total of Days is in Session for the Entire Fiscal Year: ",null,null,null,null,null,null,null,null,null,null,null,null,null,{"$f":"B52","v":365},null,null,null,null,null,null,null,"2020-08-06","O",19,"2020-08-06",1]
[null,null,null,null,null,null,null,null,{"$f":"IF(B52>H9,\"Total open days > than appproved open days\",IF(H9=\"No Calendar\",\"No Calendar, please submit Calendar first.\",IF(H9=\"\",\"\",\"\")))","v":""},null,null,null,null,null,null,null,null,null,null,null,null,null,null,null,null,null,null,null,null,null,"2020-08-07","P",19,"2020-08-07",1]
[3,"Other Information",null,null,null,null,null,null,null,null,null,null,null,null,null,null,null,null,null,null,null,null,null,null,null,null,null,null,null,null,"2020-08-08","Q",19,"2020-08-08",1]
[null,null,null,null,null,null,null,null,null,null,null,null,null,null,null,null,null,null,null,null,null,null,null,null,null,null,null,null,null,null,"2020-08-09","K",20,"2020-08-09",1]
[null,null,"Printed Name of Person Completing Form:",null,null,null,null,null,null,null,null,null,null,null,null,null,null,null,"Date:",null,null,null,null,null,null,null,null,null,null,null,"2020-08-10","L",20,"2020-08-10",1]
[null,null,"Title of Person Completing Form:",null,null,null,null,null,null,null,null,null,null,null,null,null,null,null,"Phone#:",null,null,null,null,null,null,null,null,null,null,null,"2020-08-11","M",20,"2020-08-11",1]
[null,null,"Contact person if not same as person above:",null,null,null,null,null,null,null,null,null,null,null,null,null,null,null,"Fax #:",null,null,null,null,null,null,null,null,null,null,null,"2020-08-12","N",20,"2020-08-12",1]
[null,null,"E-Mail:",null,null,null,null,null,null,null,null,null,null,null,null,null,null,null,null,null,null,null,null,null,null,null,null,null,null,null,"2020-08-13","O",20,"2020-08-13",1]
[null,null,null,null,null,null,null,null,null,null,null,null,null,null,null,null,null,null,null,null,null,null,null,null,null,null,null,null,null,null,"2020-08-14","P",20,"2020-08-14",1]
[4,"Saving the file",null,null,null,null,null,null,null,null,null,null,null,null,null,null,null,null,null,null,null,null,null,null,null,null,null,null,null,null,"2020-08-15","Q",20,"2020-08-15",1]
[null,"Once you have entered the dates that are open/closed, click the \"Save Data\" button located in the upper right hand corner of this sheet. The file will be automatically saved as \"21CBxxxxx.xls\" (xxxxx represents the program code). Please email a copy of this file to Aquarius Wise at Aquarius.Wise@mass.gov",null,null,null,null,null,null,null,null,null,null,null,null,null,null,null,null,null,null,null,null,null,null,null,null,null,null,null,null,"2020-08-16","K",21,"2020-08-16",1]
[null," ",null,null,null,null,null,null,null,null,null,null,null,null,null,null,null,null,null,null,null,null,null,null,null,null,null,null,null,null,"2020-08-17","L",21,"2020-08-17",1]
[null,null,null,null,null,null,null,null,null,null,null,null,null,null,null,null,null,null,null,null,null,null,null,null,null,null,null,null,null,null,"2020-08-18","M",21,"2020-08-18",1]
[null,null,null,null,null,null,null,null,null,null,null,null,null,null,null,null,null,null,null,null,null,null,null,null,null,null,null,null,null,null,"2020-08-19","N",21,"2020-08-19",1]
[null,null,null,null,null,null,null,null,null,null,null,null,null,null,null,null,null,null,null,null,null,null,null,null,null,null,null,null,null,null,"2020-08-20","O",21,"2020-08-20",1]
[null,null,null,null,null,null,null,null,null,null,null,null,null,null,null,null,null,null,null,null,null,null,null,null,null,null,null,null,null,null,"2020-08-21","P",21,"2020-08-21",1]
[null,null,null,null,null,null,null,null,null,null,null,null,null,null,null,null,null,null,null,null,null,null,null,null,null,null,null,null,null,null,"2020-08-22","Q",21,"2020-08-22",1]
[null,null,null,null,null,null,null,null,null,null,null,null,null,null,null,null,null,null,null,null,null,null,null,null,null,null,null,null,null,null,"2020-08-23","K",22,"2020-08-23",1]
[null,null,null,null,null,null,null,null,null,null,null,null,null,null,null,null,null,null,null,null,null,null,null,null,null,null,null,null,null,null,"2020-08-24","L",22,"2020-08-24",1]
[null,null,null,null,null,null,null,null,null,null,null,null,null,null,null,null,null,null,null,null,null,null,null,null,null,null,null,null,null,null,"2020-08-25","M",22,"2020-08-25",1]
[null,null,null,null,null,null,null,null,null,null,null,null,null,null,null,null,null,null,null,null,null,null,null,null,null,null,null,null,null,null,"2020-08-26","N",22,"2020-08-26",1]
[null,null,null,null,null,null,null,null,null,null,null,null,null,null,null,null,null,null,null,null,null,null,null,null,null,null,null,null,null,null,"2020-08-27","O",22,"2020-08-27",1]
[null,null,null,null,null,null,null,null,null,null,null,null,null,null,null,null,null,null,null,null,null,null,null,null,null,null,null,null,null,null,"2020-08-28","P",22,"2020-08-28",1]
[null,null,null,null,null,null,null,null,null,null,null,null,null,null,null,null,null,null,null,null,null,null,null,null,null,null,null,null,null,null,"2020-08-29","Q",22,"2020-08-29",1]
[null,null,null,null,null,null,null,null,null,null,null,null,null,null,null,null,null,null,null,null,null,null,null,null,null,null,null,null,null,null,"2020-08-30","K",23,"2020-08-30",1]
[null,null,null,null,null,null,null,null,null,null,null,null,null,null,null,null,null,null,null,null,null,null,null,null,null,null,null,null,null,null,"2020-08-31","L",23,"2020-08-31",1]
[null,null,null,null,null,null,null,null,null,null,null,null,null,null,null,null,null,null,null,null,null,null,null,null,null,null,null,null,null,null,"2020-09-01","V",18,"2020-09-01",1]
[null,null,null,null,null,null,null,null,null,null,null,null,null,null,null,null,null,null,null,null,null,null,null,null,null,null,null,null,null,null,"2020-09-02","W",18,"2020-09-02",1]
[null,null,null,null,null,null,null,null,null,null,null,null,null,null,null,null,null,null,null,null,null,null,null,null,null,null,null,null,null,null,"2020-09-03","X",18,"2020-09-03",1]
[null,null,null,null,null,null,null,null,null,null,null,null,null,null,null,null,null,null,null,null,null,null,null,null,null,null,null,null,null,null,"2020-09-04","Y",18,{"$f":"IF(INDIRECT(AF81&AG81)=\"\",\"\",AE81)","v":"2020-09-04"},{"$f":"IF(AH81=\"\",0,1)","v":1}]
[null,null,null,null,null,null,null,null,null,null,null,null,null,null,null,null,null,null,null,null,null,null,null,null,null,null,null,null,null,null,"2020-09-05","Z",18,"2020-09-05",1]
[null,null,null,null,null,null,null,null,null,null,null,null,null,null,null,null,null,null,null,null,null,null,null,null,null,null,null,null,null,null,"2020-09-06","T",19,"2020-09-06",1]
[null,null,null,null,null,null,null,null,null,null,null,null,null,null,null,null,null,null,null,null,null,null,null,null,null,null,null,null,null,null,"2020-09-07","U",19,"2020-09-07",1]
[null,null,null,null,null,null,null,null,null,null,null,null,null,null,null,null,null,null,null,null,null,null,null,null,null,null,null,null,null,null,"2020-09-08","V",19,"2020-09-08",1]
[null,null,null,null,null,null,null,null,null,null,null,null,null,null,null,null,null,null,null,null,null,null,null,null,null,null,null,null,null,null,"2020-09-09","W",19,"2020-09-09",1]
[null,null,null,null,null,null,null,null,null,null,null,null,null,null,null,null,null,null,null,null,null,null,null,null,null,null,null,null,null,null,"2020-09-10","X",19,"2020-09-10",1]
[null,null,null,null,null,null,null,null,null,null,null,null,null,null,null,null,null,null,null,null,null,null,null,null,null,null,null,null,null,null,"2020-09-11","Y",19,"2020-09-11",1]
[null,null,null,null,null,null,null,null,null,null,null,null,null,null,null,null,null,null,null,null,null,null,null,null,null,null,null,null,null,null,"2020-09-12","Z",19,"2020-09-12",1]
[null,null,null,null,null,null,null,null,null,null,null,null,null,null,null,null,null,null,null,null,null,null,null,null,null,null,null,null,null,null,"2020-09-13","T",20,"2020-09-13",1]
[null,null,null,null,null,null,null,null,null,null,null,null,null,null,null,null,null,null,null,null,null,null,null,null,null,null,null,null,null,null,"2020-09-14","U",20,"2020-09-14",1]
[null,null,null,null,null,null,null,null,null,null,null,null,null,null,null,null,null,null,null,null,null,null,null,null,null,null,null,null,null,null,"2020-09-15","V",20,"2020-09-15",1]
[null,null,null,null,null,null,null,null,null,null,null,null,null,null,null,null,null,null,null,null,null,null,null,null,null,null,null,null,null,null,"2020-09-16","W",20,"2020-09-16",1]
[null,null,null,null,null,null,null,null,null,null,null,null,null,null,null,null,null,null,null,null,null,null,null,null,null,null,null,null,null,null,"2020-09-17","X",20,"2020-09-17",1]
[null,null,null,null,null,null,null,null,null,null,null,null,null,null,null,null,null,null,null,null,null,null,null,null,null,null,null,null,null,null,"2020-09-18","Y",20,"2020-09-18",1]
[null,null,null,null,null,null,null,null,null,null,null,null,null,null,null,null,null,null,null,null,null,null,null,null,null,null,null,null,null,null,"2020-09-19","Z",20,"2020-09-19",1]
[null,null,null,null,null,null,null,null,null,null,null,null,null,null,null,null,null,null,null,null,null,null,null,null,null,null,null,null,null,null,"2020-09-20","T",21,"2020-09-20",1]
[null,null,null,null,null,null,null,null,null,null,null,null,null,null,null,null,null,null,null,null,null,null,null,null,null,null,null,null,null,null,"2020-09-21","U",21,"2020-09-21",1]
[null,null,null,null,null,null,null,null,null,null,null,null,null,null,null,null,null,null,null,null,null,null,null,null,null,null,null,null,null,null,"2020-09-22","V",21,"2020-09-22",1]
[null,null,null,null,null,null,null,null,null,null,null,null,null,null,null,null,null,null,null,null,null,null,null,null,null,null,null,null,null,null,"2020-09-23","W",21,"2020-09-23",1]
[null,null,null,null,null,null,null,null,null,null,null,null,null,null,null,null,null,null,null,null,null,null,null,null,null,null,null,null,null,null,"2020-09-24","X",21,"2020-09-24",1]
[null,null,null,null,null,null,null,null,null,null,null,null,null,null,null,null,null,null,null,null,null,null,null,null,null,null,null,null,null,null,"2020-09-25","Y",21,"2020-09-25",1]
[null,null,null,null,null,null,null,null,null,null,null,null,null,null,null,null,null,null,null,null,null,null,null,null,null,null,null,null,null,null,"2020-09-26","Z",21,"2020-09-26",1]
[null,null,null,null,null,null,null,null,null,null,null,null,null,null,null,null,null,null,null,null,null,null,null,null,null,null,null,null,null,null,"2020-09-27","T",22,"2020-09-27",1]
[null,null,null,null,null,null,null,null,null,null,null,null,null,null,null,null,null,null,null,null,null,null,null,null,null,null,null,null,null,null,"2020-09-28","U",22,"2020-09-28",1]
[null,null,null,null,null,null,null,null,null,null,null,null,null,null,null,null,null,null,null,null,null,null,null,null,null,null,null,null,null,null,"2020-09-29","V",22,"2020-09-29",1]
[null,null,null,null,null,null,null,null,null,null,null,null,null,null,null,null,null,null,null,null,null,null,null,null,null,null,null,null,null,null,"2020-09-30","W",22,"2020-09-30",1]
[null,null,null,null,null,null,null,null,null,null,null,null,null,null,null,null,null,null,null,null,null,null,null,null,null,null,null,null,null,null,"2020-10-01","F",27,"2020-10-01",1]
[null,null,null,null,null,null,null,null,null,null,null,null,null,null,null,null,null,null,null,null,null,null,null,null,null,null,null,null,null,null,"2020-10-02","G",27,"2020-10-02",1]
[null,null,null,null,null,null,null,null,null,null,null,null,null,null,null,null,null,null,null,null,null,null,null,null,null,null,null,null,null,null,"2020-10-03","H",27,"2020-10-03",1]
[null,null,null,null,null,null,null,null,null,null,null,null,null,null,null,null,null,null,null,null,null,null,null,null,null,null,null,null,null,null,"2020-10-04","B",28,"2020-10-04",1]
[null,null,null,null,null,null,null,null,null,null,null,null,null,null,null,null,null,null,null,null,null,null,null,null,null,null,null,null,null,null,"2020-10-05","C",28,"2020-10-05",1]
[null,null,null,null,null,null,null,null,null,null,null,null,null,null,null,null,null,null,null,null,null,null,null,null,null,null,null,null,null,null,"2020-10-06","D",28,"2020-10-06",1]
[null,null,null,null,null,null,null,null,null,null,null,null,null,null,null,null,null,null,null,null,null,null,null,null,null,null,null,null,null,null,"2020-10-07","E",28,"2020-10-07",1]
[null,null,null,null,null,null,null,null,null,null,null,null,null,null,null,null,null,null,null,null,null,null,null,null,null,null,null,null,null,null,"2020-10-08","F",28,"2020-10-08",1]
[null,null,null,null,null,null,null,null,null,null,null,null,null,null,null,null,null,null,null,null,null,null,null,null,null,null,null,null,null,null,"2020-10-09","G",28,"2020-10-09",1]
[null,null,null,null,null,null,null,null,null,null,null,null,null,null,null,null,null,null,null,null,null,null,null,null,null,null,null,null,null,null,"2020-10-10","H",28,"2020-10-10",1]
[null,null,null,null,null,null,null,null,null,null,null,null,null,null,null,null,null,null,null,null,null,null,null,null,null,null,null,null,null,null,"2020-10-11","B",29,"2020-10-11",1]
[null,null,null,null,null,null,null,null,null,null,null,null,null,null,null,null,null,null,null,null,null,null,null,null,null,null,null,null,null,null,"2020-10-12","C",29,"2020-10-12",1]
[null,null,null,null,null,null,null,null,null,null,null,null,null,null,null,null,null,null,null,null,null,null,null,null,null,null,null,null,null,null,"2020-10-13","D",29,"2020-10-13",1]
[null,null,null,null,null,null,null,null,null,null,null,null,null,null,null,null,null,null,null,null,null,null,null,null,null,null,null,null,null,null,"2020-10-14","E",29,"2020-10-14",1]
[null,null,null,null,null,null,null,null,null,null,null,null,null,null,null,null,null,null,null,null,null,null,null,null,null,null,null,null,null,null,"2020-10-15","F",29,"2020-10-15",1]
[null,null,null,null,null,null,null,null,null,null,null,null,null,null,null,null,null,null,null,null,null,null,null,null,null,null,null,null,null,null,"2020-10-16","G",29,"2020-10-16",1]
[null,null,null,null,null,null,null,null,null,null,null,null,null,null,null,null,null,null,null,null,null,null,null,null,null,null,null,null,null,null,"2020-10-17","H",29,"2020-10-17",1]
[null,null,null,null,null,null,null,null,null,null,null,null,null,null,null,null,null,null,null,null,null,null,null,null,null,null,null,null,null,null,"2020-10-18","B",30,"2020-10-18",1]
[null,null,null,null,null,null,null,null,null,null,null,null,null,null,null,null,null,null,null,null,null,null,null,null,null,null,null,null,null,null,"2020-10-19","C",30,"2020-10-19",1]
[null,null,null,null,null,null,null,null,null,null,null,null,null,null,null,null,null,null,null,null,null,null,null,null,null,null,null,null,null,null,"2020-10-20","D",30,"2020-10-20",1]
[null,null,null,null,null,null,null,null,null,null,null,null,null,null,null,null,null,null,null,null,null,null,null,null,null,null,null,null,null,null,"2020-10-21","E",30,"2020-10-21",1]
[null,null,null,null,null,null,null,null,null,null,null,null,null,null,null,null,null,null,null,null,null,null,null,null,null,null,null,null,null,null,"2020-10-22","F",30,"2020-10-22",1]
[null,null,null,null,null,null,null,null,null,null,null,null,null,null,null,null,null,null,null,null,null,null,null,null,null,null,null,null,null,null,"2020-10-23","G",30,"2020-10-23",1]
[null,null,null,null,null,null,null,null,null,null,null,null,null,null,null,null,null,null,null,null,null,null,null,null,null,null,null,null,null,null,"2020-10-24","H",30,"2020-10-24",1]
[null,null,null,null,null,null,null,null,null,null,null,null,null,null,null,null,null,null,null,null,null,null,null,null,null,null,null,null,null,null,"2020-10-25","G",30,"2020-10-25",1]
[null,null,null,null,null,null,null,null,null,null,null,null,null,null,null,null,null,null,null,null,null,null,null,null,null,null,null,null,null,null,"2020-10-26","H",30,"2020-10-26",1]
[null,null,null,null,null,null,null,null,null,null,null,null,null,null,null,null,null,null,null,null,null,null,null,null,null,null,null,null,null,null,"2020-10-27","B",31,"2020-10-27",1]
[null,null,null,null,null,null,null,null,null,null,null,null,null,null,null,null,null,null,null,null,null,null,null,null,null,null,null,null,null,null,"2020-10-28","C",31,"2020-10-28",1]
[null,null,null,null,null,null,null,null,null,null,null,null,null,null,null,null,null,null,null,null,null,null,null,null,null,null,null,null,null,null,"2020-10-29","D",31,"2020-10-29",1]
[null,null,null,null,null,null,null,null,null,null,null,null,null,null,null,null,null,null,null,null,null,null,null,null,null,null,null,null,null,null,"2020-10-30","E",31,"2020-10-30",1]
[null,null,null,null,null,null,null,null,null,null,null,null,null,null,null,null,null,null,null,null,null,null,null,null,null,null,null,null,null,null,"2020-10-31","F",31,"2020-10-31",1]
[null,null,null,null,null,null,null,null,null,null,null,null,null,null,null,null,null,null,null,null,null,null,null,null,null,null,null,null,null,null,"2020-11-01","K",27,"2020-11-01",1]
[null,null,null,null,null,null,null,null,null,null,null,null,null,null,null,null,null,null,null,null,null,null,null,null,null,null,null,null,null,null,"2020-11-02","L",27,"2020-11-02",1]
[null,null,null,null,null,null,null,null,null,null,null,null,null,null,null,null,null,null,null,null,null,null,null,null,null,null,null,null,null,null,"2020-11-03","M",27,"2020-11-03",1]
[null,null,null,null,null,null,null,null,null,null,null,null,null,null,null,null,null,null,null,null,null,null,null,null,null,null,null,null,null,null,"2020-11-04","N",27,"2020-11-04",1]
[null,null,null,null,null,null,null,null,null,null,null,null,null,null,null,null,null,null,null,null,null,null,null,null,null,null,null,null,null,null,"2020-11-05","O",27,"2020-11-05",1]
[null,null,null,null,null,null,null,null,null,null,null,null,null,null,null,null,null,null,null,null,null,null,null,null,null,null,null,null,null,null,"2020-11-06","P",27,"2020-11-06",1]
[null,null,null,null,null,null,null,null,null,null,null,null,null,null,null,null,null,null,null,null,null,null,null,null,null,null,null,null,null,null,"2020-11-07","Q",27,{"$f":"IF(INDIRECT(AF145&AG145)=\"\",\"\",AE145)","v":"2020-11-07"},{"$f":"IF(AH145=\"\",0,1)","v":1}]
[null,null,null,null,null,null,null,null,null,null,null,null,null,null,null,null,null,null,null,null,null,null,null,null,null,null,null,null,null,null,"2020-11-08","K",28,"2020-11-08",1]
[null,null,null,null,null,null,null,null,null,null,null,null,null,null,null,null,null,null,null,null,null,null,null,null,null,null,null,null,null,null,"2020-11-09","L",28,"2020-11-09",1]
[null,null,null,null,null,null,null,null,null,null,null,null,null,null,null,null,null,null,null,null,null,null,null,null,null,null,null,null,null,null,"2020-11-10","M",28,"2020-11-10",1]
[null,null,null,null,null,null,null,null,null,null,null,null,null,null,null,null,null,null,null,null,null,null,null,null,null,null,null,null,null,null,"2020-11-11","N",28,"2020-11-11",1]
[null,null,null,null,null,null,null,null,null,null,null,null,null,null,null,null,null,null,null,null,null,null,null,null,null,null,null,null,null,null,"2020-11-12","O",28,"2020-11-12",1]
[null,null,null,null,null,null,null,null,null,null,null,null,null,null,null,null,null,null,null,null,null,null,null,null,null,null,null,null,null,null,"2020-11-13","P",28,"2020-11-13",1]
[null,null,null,null,null,null,null,null,null,null,null,null,null,null,null,null,null,null,null,null,null,null,null,null,null,null,null,null,null,null,"2020-11-14","Q",28,"2020-11-14",1]
[null,null,null,null,null,null,null,null,null,null,null,null,null,null,null,null,null,null,null,null,null,null,null,null,null,null,null,null,null,null,"2020-11-15","K",29,"2020-11-15",1]
[null,null,null,null,null,null,null,null,null,null,null,null,null,null,null,null,null,null,null,null,null,null,null,null,null,null,null,null,null,null,"2020-11-16","L",29,"2020-11-16",1]
[null,null,null,null,null,null,null,null,null,null,null,null,null,null,null,null,null,null,null,null,null,null,null,null,null,null,null,null,null,null,"2020-11-17","M",29,"2020-11-17",1]
[null,null,null,null,null,null,null,null,null,null,null,null,null,null,null,null,null,null,null,null,null,null,null,null,null,null,null,null,null,null,"2020-11-18","N",29,"2020-11-18",1]
[null,null,null,null,null,null,null,null,null,null,null,null,null,null,null,null,null,null,null,null,null,null,null,null,null,null,null,null,null,null,"2020-11-19","O",29,"2020-11-19",1]
[null,null,null,null,null,null,null,null,null,null,null,null,null,null,null,null,null,null,null,null,null,null,null,null,null,null,null,null,null,null,"2020-11-20","P",29,"2020-11-20",1]
[null,null,null,null,null,null,null,null,null,null,null,null,null,null,null,null,null,null,null,null,null,null,null,null,null,null,null,null,null,null,"2020-11-21","Q",29,"2020-11-21",1]
[null,null,null,null,null,null,null,null,null,null,null,null,null,null,null,null,null,null,null,null,null,null,null,null,null,null,null,null,null,null,"2020-11-22","K",30,"2020-11-22",1]
[null,null,null,null,null,null,null,null,null,null,null,null,null,null,null,null,null,null,null,null,null,null,null,null,null,null,null,null,null,null,"2020-11-23","L",30,"2020-11-23",1]
[null,null,null,null,null,null,null,null,null,null,null,null,null,null,null,null,null,null,null,null,null,null,null,null,null,null,null,null,null,null,"2020-11-24","M",30,"2020-11-24",1]
[null,null,null,null,null,null,null,null,null,null,null,null,null,null,null,null,null,null,null,null,null,null,null,null,null,null,null,null,null,null,"2020-11-25","N",30,"2020-11-25",1]
[null,null,null,null,null,null,null,null,null,null,null,null,null,null,null,null,null,null,null,null,null,null,null,null,null,null,null,null,null,null,"2020-11-26","O",30,"2020-11-26",1]
[null,null,null,null,null,null,null,null,null,null,null,null,null,null,null,null,null,null,null,null,null,null,null,null,null,null,null,null,null,null,"2020-11-27","P",30,"2020-11-27",1]
[null,null,null,null,null,null,null,null,null,null,null,null,null,null,null,null,null,null,null,null,null,null,null,null,null,null,null,null,null,null,"2020-11-28","Q",30,"2020-11-28",1]
[null,null,null,null,null,null,null,null,null,null,null,null,null,null,null,null,null,null,null,null,null,null,null,null,null,null,null,null,null,null,"2020-11-29","K",31,"2020-11-29",1]
[null,null,null,null,null,null,null,null,null,null,null,null,null,null,null,null,null,null,null,null,null,null,null,null,null,null,null,null,null,null,"2020-11-30","L",31,"2020-11-30",1]
[null,null,null,null,null,null,null,null,null,null,null,null,null,null,null,null,null,null,null,null,null,null,null,null,null,null,null,null,null,null,"2020-12-01","V",27,"2020-12-01",1]
[null,null,null,null,null,null,null,null,null,null,null,null,null,null,null,null,null,null,null,null,null,null,null,null,null,null,null,null,null,null,"2020-12-02","W",27,"2020-12-02",1]
[null,null,null,null,null,null,null,null,null,null,null,null,null,null,null,null,null,null,null,null,null,null,null,null,null,null,null,null,null,null,"2020-12-03","X",27,"2020-12-03",1]
[null,null,null,null,null,null,null,null,null,null,null,null,null,null,null,null,null,null,null,null,null,null,null,null,null,null,null,null,null,null,"2020-12-04","Y",27,"2020-12-04",1]
[null,null,null,null,null,null,null,null,null,null,null,null,null,null,null,null,null,null,null,null,null,null,null,null,null,null,null,null,null,null,"2020-12-05","Z",27,"2020-12-05",1]
[null,null,null,null,null,null,null,null,null,null,null,null,null,null,null,null,null,null,null,null,null,null,null,null,null,null,null,null,null,null,"2020-12-06","T",28,"2020-12-06",1]
[null,null,null,null,null,null,null,null,null,null,null,null,null,null,null,null,null,null,null,null,null,null,null,null,null,null,null,null,null,null,"2020-12-07","U",28,"2020-12-07",1]
[null,null,null,null,null,null,null,null,null,null,null,null,null,null,null,null,null,null,null,null,null,null,null,null,null,null,null,null,null,null,"2020-12-08","V",28,"2020-12-08",1]
[null,null,null,null,null,null,null,null,null,null,null,null,null,null,null,null,null,null,null,null,null,null,null,null,null,null,null,null,null,null,"2020-12-09","W",28,"2020-12-09",1]
[null,null,null,null,null,null,null,null,null,null,null,null,null,null,null,null,null,null,null,null,null,null,null,null,null,null,null,null,null,null,"2020-12-10","X",28,"2020-12-10",1]
[null,null,null,null,null,null,null,null,null,null,null,null,null,null,null,null,null,null,null,null,null,null,null,null,null,null,null,null,null,null,"2020-12-11","Y",28,"2020-12-11",1]
[null,null,null,null,null,null,null,null,null,null,null,null,null,null,null,null,null,null,null,null,null,null,null,null,null,null,null,null,null,null,"2020-12-12","Z",28,"2020-12-12",1]
[null,null,null,null,null,null,null,null,null,null,null,null,null,null,null,null,null,null,null,null,null,null,null,null,null,null,null,null,null,null,"2020-12-13","T",29,"2020-12-13",1]
[null,null,null,null,null,null,null,null,null,null,null,null,null,null,null,null,null,null,null,null,null,null,null,null,null,null,null,null,null,null,"2020-12-14","U",29,"2020-12-14",1]
[null,null,null,null,null,null,null,null,null,null,null,null,null,null,null,null,null,null,null,null,null,null,null,null,null,null,null,null,null,null,"2020-12-15","V",29,"2020-12-15",1]
[null,null,null,null,null,null,null,null,null,null,null,null,null,null,null,null,null,null,null,null,null,null,null,null,null,null,null,null,null,null,"2020-12-16","W",29,"2020-12-16",1]
[null,null,null,null,null,null,null,null,null,null,null,null,null,null,null,null,null,null,null,null,null,null,null,null,null,null,null,null,null,null,"2020-12-17","X",29,"2020-12-17",1]
[null,null,null,null,null,null,null,null,null,null,null,null,null,null,null,null,null,null,null,null,null,null,null,null,null,null,null,null,null,null,"2020-12-18","Y",29,"2020-12-18",1]
[null,null,null,null,null,null,null,null,null,null,null,null,null,null,null,null,null,null,null,null,null,null,null,null,null,null,null,null,null,null,"2020-12-19","Z",29,"2020-12-19",1]
[null,null,null,null,null,null,null,null,null,null,null,null,null,null,null,null,null,null,null,null,null,null,null,null,null,null,null,null,null,null,"2020-12-20","T",30,"2020-12-20",1]
[null,null,null,null,null,null,null,null,null,null,null,null,null,null,null,null,null,null,null,null,null,null,null,null,null,null,null,null,null,null,"2020-12-21","U",30,"2020-12-21",1]
[null,null,null,null,null,null,null,null,null,null,null,null,null,null,null,null,null,null,null,null,null,null,null,null,null,null,null,null,null,null,"2020-12-22","V",30,"2020-12-22",1]
[null,null,null,null,null,null,null,null,null,null,null,null,null,null,null,null,null,null,null,null,null,null,null,null,null,null,null,null,null,null,"2020-12-23","W",30,"2020-12-23",1]
[null,null,null,null,null,null,null,null,null,null,null,null,null,null,null,null,null,null,null,null,null,null,null,null,null,null,null,null,null,null,"2020-12-24","X",30,"2020-12-24",1]
[null,null,null,null,null,null,null,null,null,null,null,null,null,null,null,null,null,null,null,null,null,null,null,null,null,null,null,null,null,null,"2020-12-25","Y",30,"2020-12-25",1]
[null,null,null,null,null,null,null,null,null,null,null,null,null,null,null,null,null,null,null,null,null,null,null,null,null,null,null,null,null,null,"2020-12-26","Z",30,"2020-12-26",1]
[null,null,null,null,null,null,null,null,null,null,null,null,null,null,null,null,null,null,null,null,null,null,null,null,null,null,null,null,null,null,"2020-12-27","T",31,"2020-12-27",1]
[null,null,null,null,null,null,null,null,null,null,null,null,null,null,null,null,null,null,null,null,null,null,null,null,null,null,null,null,null,null,"2020-12-28","U",31,"2020-12-28",1]
[null,null,null,null,null,null,null,null,null,null,null,null,null,null,null,null,null,null,null,null,null,null,null,null,null,null,null,null,null,null,"2020-12-29","V",31,"2020-12-29",1]
[null,null,null,null,null,null,null,null,null,null,null,null,null,null,null,null,null,null,null,null,null,null,null,null,null,null,null,null,null,null,"2020-12-30","W",31,"2020-12-30",1]
[null,null,null,null,null,null,null,null,null,null,null,null,null,null,null,null,null,null,null,null,null,null,null,null,null,null,null,null,null,null,"2020-12-31","X",31,"2020-12-31",1]
[null,null,null,null,null,null,null,null,null,null,null,null,null,null,null,null,null,null,null,null,null,null,null,null,null,null,null,null,null,null,"2021-01-01","G",36,"2021-01-01",1]
[null,null,null,null,null,null,null,null,null,null,null,null,null,null,null,null,null,null,null,null,null,null,null,null,null,null,null,null,null,null,"2021-01-02","H",36,"2021-01-02",1]
[null,null,null,null,null,null,null,null,null,null,null,null,null,null,null,null,null,null,null,null,null,null,null,null,null,null,null,null,null,null,"2021-01-03","B",37,"2021-01-03",1]
[null,null,null,null,null,null,null,null,null,null,null,null,null,null,null,null,null,null,null,null,null,null,null,null,null,null,null,null,null,null,"2021-01-04","C",37,"2021-01-04",1]
[null,null,null,null,null,null,null,null,null,null,null,null,null,null,null,null,null,null,null,null,null,null,null,null,null,null,null,null,null,null,"2021-01-05","D",37,"2021-01-05",1]
[null,null,null,null,null,null,null,null,null,null,null,null,null,null,null,null,null,null,null,null,null,null,null,null,null,null,null,null,null,null,"2021-01-06","E",37,"2021-01-06",1]
[null,null,null,null,null,null,null,null,null,null,null,null,null,null,null,null,null,null,null,null,null,null,null,null,null,null,null,null,null,null,"2021-01-07","F",37,"2021-01-07",1]
[null,null,null,null,null,null,null,null,null,null,null,null,null,null,null,null,null,null,null,null,null,null,null,null,null,null,null,null,null,null,"2021-01-08","G",37,"2021-01-08",1]
[null,null,null,null,null,null,null,null,null,null,null,null,null,null,null,null,null,null,null,null,null,null,null,null,null,null,null,null,null,null,"2021-01-09","H",37,"2021-01-09",1]
[null,null,null,null,null,null,null,null,null,null,null,null,null,null,null,null,null,null,null,null,null,null,null,null,null,null,null,null,null,null,"2021-01-10","B",38,{"$f":"IF(INDIRECT(AF209&AG209)=\"\",\"\",AE209)","v":"2021-01-10"},{"$f":"IF(AH209=\"\",0,1)","v":1}]
[null,null,null,null,null,null,null,null,null,null,null,null,null,null,null,null,null,null,null,null,null,null,null,null,null,null,null,null,null,null,"2021-01-11","C",38,"2021-01-11",1]
[null,null,null,null,null,null,null,null,null,null,null,null,null,null,null,null,null,null,null,null,null,null,null,null,null,null,null,null,null,null,"2021-01-12","D",38,"2021-01-12",1]
[null,null,null,null,null,null,null,null,null,null,null,null,null,null,null,null,null,null,null,null,null,null,null,null,null,null,null,null,null,null,"2021-01-13","E",38,"2021-01-13",1]
[null,null,null,null,null,null,null,null,null,null,null,null,null,null,null,null,null,null,null,null,null,null,null,null,null,null,null,null,null,null,"2021-01-14","F",38,"2021-01-14",1]
[null,null,null,null,null,null,null,null,null,null,null,null,null,null,null,null,null,null,null,null,null,null,null,null,null,null,null,null,null,null,"2021-01-15","G",38,"2021-01-15",1]
[null,null,null,null,null,null,null,null,null,null,null,null,null,null,null,null,null,null,null,null,null,null,null,null,null,null,null,null,null,null,"2021-01-16","H",38,"2021-01-16",1]
[null,null,null,null,null,null,null,null,null,null,null,null,null,null,null,null,null,null,null,null,null,null,null,null,null,null,null,null,null,null,"2021-01-17","B",39,"2021-01-17",1]
[null,null,null,null,null,null,null,null,null,null,null,null,null,null,null,null,null,null,null,null,null,null,null,null,null,null,null,null,null,null,"2021-01-18","C",39,"2021-01-18",1]
[null,null,null,null,null,null,null,null,null,null,null,null,null,null,null,null,null,null,null,null,null,null,null,null,null,null,null,null,null,null,"2021-01-19","D",39,"2021-01-19",1]
[null,null,null,null,null,null,null,null,null,null,null,null,null,null,null,null,null,null,null,null,null,null,null,null,null,null,null,null,null,null,"2021-01-20","E",39,"2021-01-20",1]
[null,null,null,null,null,null,null,null,null,null,null,null,null,null,null,null,null,null,null,null,null,null,null,null,null,null,null,null,null,null,"2021-01-21","F",39,"2021-01-21",1]
[null,null,null,null,null,null,null,null,null,null,null,null,null,null,null,null,null,null,null,null,null,null,null,null,null,null,null,null,null,null,"2021-01-22","G",39,"2021-01-22",1]
[null,null,null,null,null,null,null,null,null,null,null,null,null,null,null,null,null,null,null,null,null,null,null,null,null,null,null,null,null,null,"2021-01-23","H",39,"2021-01-23",1]
[null,null,null,null,null,null,null,null,null,null,null,null,null,null,null,null,null,null,null,null,null,null,null,null,null,null,null,null,null,null,"2021-01-24","B",40,"2021-01-24",1]
[null,null,null,null,null,null,null,null,null,null,null,null,null,null,null,null,null,null,null,null,null,null,null,null,null,null,null,null,null,null,"2021-01-25","C",40,"2021-01-25",1]
[null,null,null,null,null,null,null,null,null,null,null,null,null,null,null,null,null,null,null,null,null,null,null,null,null,null,null,null,null,null,"2021-01-26","D",40,"2021-01-26",1]
[null,null,null,null,null,null,null,null,null,null,null,null,null,null,null,null,null,null,null,null,null,null,null,null,null,null,null,null,null,null,"2021-01-27","E",40,"2021-01-27",1]
[null,null,null,null,null,null,null,null,null,null,null,null,null,null,null,null,null,null,null,null,null,null,null,null,null,null,null,null,null,null,"2021-01-28","F",40,"2021-01-28",1]
[null,null,null,null,null,null,null,null,null,null,null,null,null,null,null,null,null,null,null,null,null,null,null,null,null,null,null,null,null,null,"2021-01-29","G",40,"2021-01-29",1]
[null,null,null,null,null,null,null,null,null,null,null,null,null,null,null,null,null,null,null,null,null,null,null,null,null,null,null,null,null,null,"2021-01-30","H",40,"2021-01-30",1]
[null,null,null,null,null,null,null,null,null,null,null,null,null,null,null,null,null,null,null,null,null,null,null,null,null,null,null,null,null,null,"2021-01-31","B",41,"2021-01-31",1]
[null,null,null,null,null,null,null,null,null,null,null,null,null,null,null,null,null,null,null,null,null,null,null,null,null,null,null,null,null,null,"2021-02-01","L",36,"2021-02-01",1]
[null,null,null,null,null,null,null,null,null,null,null,null,null,null,null,null,null,null,null,null,null,null,null,null,null,null,null,null,null,null,"2021-02-02","M",36,"2021-02-02",1]
[null,null,null,null,null,null,null,null,null,null,null,null,null,null,null,null,null,null,null,null,null,null,null,null,null,null,null,null,null,null,"2021-02-03","N",36,"2021-02-03",1]
[null,null,null,null,null,null,null,null,null,null,null,null,null,null,null,null,null,null,null,null,null,null,null,null,null,null,null,null,null,null,"2021-02-04","O",36,"2021-02-04",1]
[null,null,null,null,null,null,null,null,null,null,null,null,null,null,null,null,null,null,null,null,null,null,null,null,null,null,null,null,null,null,"2021-02-05","P",36,"2021-02-05",1]
[null,null,null,null,null,null,null,null,null,null,null,null,null,null,null,null,null,null,null,null,null,null,null,null,null,null,null,null,null,null,"2021-02-06","Q",36,"2021-02-06",1]
[null,null,null,null,null,null,null,null,null,null,null,null,null,null,null,null,null,null,null,null,null,null,null,null,null,null,null,null,null,null,"2021-02-07","K",37,"2021-02-07",1]
[null,null,null,null,null,null,null,null,null,null,null,null,null,null,null,null,null,null,null,null,null,null,null,null,null,null,null,null,null,null,"2021-02-08","L",37,"2021-02-08",1]
[null,null,null,null,null,null,null,null,null,null,null,null,null,null,null,null,null,null,null,null,null,null,null,null,null,null,null,null,null,null,"2021-02-09","M",37,"2021-02-09",1]
[null,null,null,null,null,null,null,null,null,null,null,null,null,null,null,null,null,null,null,null,null,null,null,null,null,null,null,null,null,null,"2021-02-10","N",37,"2021-02-10",1]
[null,null,null,null,null,null,null,null,null,null,null,null,null,null,null,null,null,null,null,null,null,null,null,null,null,null,null,null,null,null,"2021-02-11","O",37,"2021-02-11",1]
[null,null,null,null,null,null,null,null,null,null,null,null,null,null,null,null,null,null,null,null,null,null,null,null,null,null,null,null,null,null,"2021-02-12","P",37,"2021-02-12",1]
[null,null,null,null,null,null,null,null,null,null,null,null,null,null,null,null,null,null,null,null,null,null,null,null,null,null,null,null,null,null,"2021-02-13","Q",37,"2021-02-13",1]
[null,null,null,null,null,null,null,null,null,null,null,null,null,null,null,null,null,null,null,null,null,null,null,null,null,null,null,null,null,null,"2021-02-14","K",38,"2021-02-14",1]
[null,null,null,null,null,null,null,null,null,null,null,null,null,null,null,null,null,null,null,null,null,null,null,null,null,null,null,null,null,null,"2021-02-15","L",38,"2021-02-15",1]
[null,null,null,null,null,null,null,null,null,null,null,null,null,null,null,null,null,null,null,null,null,null,null,null,null,null,null,null,null,null,"2021-02-16","M",38,"2021-02-16",1]
[null,null,null,null,null,null,null,null,null,null,null,null,null,null,null,null,null,null,null,null,null,null,null,null,null,null,null,null,null,null,"2021-02-17","N",38,"2021-02-17",1]
[null,null,null,null,null,null,null,null,null,null,null,null,null,null,null,null,null,null,null,null,null,null,null,null,null,null,null,null,null,null,"2021-02-18","O",38,"2021-02-18",1]
[null,null,null,null,null,null,null,null,null,null,null,null,null,null,null,null,null,null,null,null,null,null,null,null,null,null,null,null,null,null,"2021-02-19","P",38,"2021-02-19",1]
[null,null,null,null,null,null,null,null,null,null,null,null,null,null,null,null,null,null,null,null,null,null,null,null,null,null,null,null,null,null,"2021-02-20","Q",38,"2021-02-20",1]
[null,null,null,null,null,null,null,null,null,null,null,null,null,null,null,null,null,null,null,null,null,null,null,null,null,null,null,null,null,null,"2021-02-21","K",39,"2021-02-21",1]
[null,null,null,null,null,null,null,null,null,null,null,null,null,null,null,null,null,null,null,null,null,null,null,null,null,null,null,null,null,null,"2021-02-22","L",39,"2021-02-22",1]
[null,null,null,null,null,null,null,null,null,null,null,null,null,null,null,null,null,null,null,null,null,null,null,null,null,null,null,null,null,null,"2021-02-23","M",39,"2021-02-23",1]
[null,null,null,null,null,null,null,null,null,null,null,null,null,null,null,null,null,null,null,null,null,null,null,null,null,null,null,null,null,null,"2021-02-24","N",39,"2021-02-24",1]
[null,null,null,null,null,null,null,null,null,null,null,null,null,null,null,null,null,null,null,null,null,null,null,null,null,null,null,null,null,null,"2021-02-25","O",39,"2021-02-25",1]
[null,null,null,null,null,null,null,null,null,null,null,null,null,null,null,null,null,null,null,null,null,null,null,null,null,null,null,null,null,null,"2021-02-26","P",39,"2021-02-26",1]
[null,null,null,null,null,null,null,null,null,null,null,null,null,null,null,null,null,null,null,null,null,null,null,null,null,null,null,null,null,null,"2021-02-27","Q",39,"2021-02-27",1]
[null,null,null,null,null,null,null,null,null,null,null,null,null,null,null,null,null,null,null,null,null,null,null,null,null,null,null,null,null,null,"2021-02-28","K",40,"2021-02-28",1]
[null,null,null,null,null,null,null,null,null,null,null,null,null,null,null,null,null,null,null,null,null,null,null,null,null,null,null,null,null,null,"2021-03-01","U",36,"2021-03-01",1]
[null,null,null,null,null,null,null,null,null,null,null,null,null,null,null,null,null,null,null,null,null,null,null,null,null,null,null,null,null,null,"2021-03-02","V",36,"2021-03-02",1]
[null,null,null,null,null,null,null,null,null,null,null,null,null,null,null,null,null,null,null,null,null,null,null,null,null,null,null,null,null,null,"2021-03-03","W",36,"2021-03-03",1]
[null,null,null,null,null,null,null,null,null,null,null,null,null,null,null,null,null,null,null,null,null,null,null,null,null,null,null,null,null,null,"2021-03-04","X",36,"2021-03-04",1]
[null,null,null,null,null,null,null,null,null,null,null,null,null,null,null,null,null,null,null,null,null,null,null,null,null,null,null,null,null,null,"2021-03-05","Y",36,"2021-03-05",1]
[null,null,null,null,null,null,null,null,null,null,null,null,null,null,null,null,null,null,null,null,null,null,null,null,null,null,null,null,null,null,"2021-03-06","Z",36,"2021-03-06",1]
[null,null,null,null,null,null,null,null,null,null,null,null,null,null,null,null,null,null,null,null,null,null,null,null,null,null,null,null,null,null,"2021-03-07","T",37,"2021-03-07",1]
[null,null,null,null,null,null,null,null,null,null,null,null,null,null,null,null,null,null,null,null,null,null,null,null,null,null,null,null,null,null,"2021-03-08","U",37,"2021-03-08",1]
[null,null,null,null,null,null,null,null,null,null,null,null,null,null,null,null,null,null,null,null,null,null,null,null,null,null,null,null,null,null,"2021-03-09","V",37,"2021-03-09",1]
[null,null,null,null,null,null,null,null,null,null,null,null,null,null,null,null,null,null,null,null,null,null,null,null,null,null,null,null,null,null,"2021-03-10","W",37,"2021-03-10",1]
[null,null,null,null,null,null,null,null,null,null,null,null,null,null,null,null,null,null,null,null,null,null,null,null,null,null,null,null,null,null,"2021-03-11","X",37,"2021-03-11",1]
[null,null,null,null,null,null,null,null,null,null,null,null,null,null,null,null,null,null,null,null,null,null,null,null,null,null,null,null,null,null,"2021-03-12","Y",37,"2021-03-12",1]
[null,null,null,null,null,null,null,null,null,null,null,null,null,null,null,null,null,null,null,null,null,null,null,null,null,null,null,null,null,null,"2021-03-13","Z",37,"2021-03-13",1]
[null,null,null,null,null,null,null,null,null,null,null,null,null,null,null,null,null,null,null,null,null,null,null,null,null,null,null,null,null,null,"2021-03-14","T",38,"2021-03-14",1]
[null,null,null,null,null,null,null,null,null,null,null,null,null,null,null,null,null,null,null,null,null,null,null,null,null,null,null,null,null,null,"2021-03-15","U",38,{"$f":"IF(INDIRECT(AF273&AG273)=\"\",\"\",AE273)","v":"2021-03-15"},{"$f":"IF(AH273=\"\",0,1)","v":1}]
[null,null,null,null,null,null,null,null,null,null,null,null,null,null,null,null,null,null,null,null,null,null,null,null,null,null,null,null,null,null,"2021-03-16","V",38,"2021-03-16",1]
[null,null,null,null,null,null,null,null,null,null,null,null,null,null,null,null,null,null,null,null,null,null,null,null,null,null,null,null,null,null,"2021-03-17","W",38,"2021-03-17",1]
[null,null,null,null,null,null,null,null,null,null,null,null,null,null,null,null,null,null,null,null,null,null,null,null,null,null,null,null,null,null,"2021-03-18","X",38,"2021-03-18",1]
[null,null,null,null,null,null,null,null,null,null,null,null,null,null,null,null,null,null,null,null,null,null,null,null,null,null,null,null,null,null,"2021-03-19","Y",38,"2021-03-19",1]
[null,null,null,null,null,null,null,null,null,null,null,null,null,null,null,null,null,null,null,null,null,null,null,null,null,null,null,null,null,null,"2021-03-20","Z",38,"2021-03-20",1]
[null,null,null,null,null,null,null,null,null,null,null,null,null,null,null,null,null,null,null,null,null,null,null,null,null,null,null,null,null,null,"2021-03-21","T",39,"2021-03-21",1]
[null,null,null,null,null,null,null,null,null,null,null,null,null,null,null,null,null,null,null,null,null,null,null,null,null,null,null,null,null,null,"2021-03-22","U",39,"2021-03-22",1]
[null,null,null,null,null,null,null,null,null,null,null,null,null,null,null,null,null,null,null,null,null,null,null,null,null,null,null,null,null,null,"2021-03-23","V",39,"2021-03-23",1]
[null,null,null,null,null,null,null,null,null,null,null,null,null,null,null,null,null,null,null,null,null,null,null,null,null,null,null,null,null,null,"2021-03-24","W",39,"2021-03-24",1]
[null,null,null,null,null,null,null,null,null,null,null,null,null,null,null,null,null,null,null,null,null,null,null,null,null,null,null,null,null,null,"2021-03-25","X",39,"2021-03-25",1]
[null,null,null,null,null,null,null,null,null,null,null,null,null,null,null,null,null,null,null,null,null,null,null,null,null,null,null,null,null,null,"2021-03-26","Y",39,"2021-03-26",1]
[null,null,null,null,null,null,null,null,null,null,null,null,null,null,null,null,null,null,null,null,null,null,null,null,null,null,null,null,null,null,"2021-03-27","Z",39,"2021-03-27",1]
[null,null,null,null,null,null,null,null,null,null,null,null,null,null,null,null,null,null,null,null,null,null,null,null,null,null,null,null,null,null,"2021-03-28","T",40,"2021-03-28",1]
[null,null,null,null,null,null,null,null,null,null,null,null,null,null,null,null,null,null,null,null,null,null,null,null,null,null,null,null,null,null,"2021-03-29","U",40,"2021-03-29",1]
[null,null,null,null,null,null,null,null,null,null,null,null,null,null,null,null,null,null,null,null,null,null,null,null,null,null,null,null,null,null,"2021-03-30","V",40,"2021-03-30",1]
[null,null,null,null,null,null,null,null,null,null,null,null,null,null,null,null,null,null,null,null,null,null,null,null,null,null,null,null,null,null,"2021-03-31","W",40,"2021-03-31",1]
[null,null,null,null,null,null,null,null,null,null,null,null,null,null,null,null,null,null,null,null,null,null,null,null,null,null,null,null,null,null,"2021-04-01","F",45,"2021-04-01",1]
[null,null,null,null,null,null,null,null,null,null,null,null,null,null,null,null,null,null,null,null,null,null,null,null,null,null,null,null,null,null,"2021-04-02","G",45,"2021-04-02",1]
[null,null,null,null,null,null,null,null,null,null,null,null,null,null,null,null,null,null,null,null,null,null,null,null,null,null,null,null,null,null,"2021-04-03","H",45,"2021-04-03",1]
[null,null,null,null,null,null,null,null,null,null,null,null,null,null,null,null,null,null,null,null,null,null,null,null,null,null,null,null,null,null,"2021-04-04","B",46,"2021-04-04",1]
[null,null,null,null,null,null,null,null,null,null,null,null,null,null,null,null,null,null,null,null,null,null,null,null,null,null,null,null,null,null,"2021-04-05","C",46,"2021-04-05",1]
[null,null,null,null,null,null,null,null,null,null,null,null,null,null,null,null,null,null,null,null,null,null,null,null,null,null,null,null,null,null,"2021-04-06","D",46,"2021-04-06",1]
[null,null,null,null,null,null,null,null,null,null,null,null,null,null,null,null,null,null,null,null,null,null,null,null,null,null,null,null,null,null,"2021-04-07","E",46,"2021-04-07",1]
[null,null,null,null,null,null,null,null,null,null,null,null,null,null,null,null,null,null,null,null,null,null,null,null,null,null,null,null,null,null,"2021-04-08","F",46,"2021-04-08",1]
[null,null,null,null,null,null,null,null,null,null,null,null,null,null,null,null,null,null,null,null,null,null,null,null,null,null,null,null,null,null,"2021-04-09","G",46,"2021-04-09",1]
[null,null,null,null,null,null,null,null,null,null,null,null,null,null,null,null,null,null,null,null,null,null,null,null,null,null,null,null,null,null,"2021-04-10","H",46,"2021-04-10",1]
[null,null,null,null,null,null,null,null,null,null,null,null,null,null,null,null,null,null,null,null,null,null,null,null,null,null,null,null,null,null,"2021-04-11","B",47,"2021-04-11",1]
[null,null,null,null,null,null,null,null,null,null,null,null,null,null,null,null,null,null,null,null,null,null,null,null,null,null,null,null,null,null,"2021-04-12","C",47,"2021-04-12",1]
[null,null,null,null,null,null,null,null,null,null,null,null,null,null,null,null,null,null,null,null,null,null,null,null,null,null,null,null,null,null,"2021-04-13","D",47,"2021-04-13",1]
[null,null,null,null,null,null,null,null,null,null,null,null,null,null,null,null,null,null,null,null,null,null,null,null,null,null,null,null,null,null,"2021-04-14","E",47,"2021-04-14",1]
[null,null,null,null,null,null,null,null,null,null,null,null,null,null,null,null,null,null,null,null,null,null,null,null,null,null,null,null,null,null,"2021-04-15","F",47,"2021-04-15",1]
[null,null,null,null,null,null,null,null,null,null,null,null,null,null,null,null,null,null,null,null,null,null,null,null,null,null,null,null,null,null,"2021-04-16","G",47,"2021-04-16",1]
[null,null,null,null,null,null,null,null,null,null,null,null,null,null,null,null,null,null,null,null,null,null,null,null,null,null,null,null,null,null,"2021-04-17","H",47,"2021-04-17",1]
[null,null,null,null,null,null,null,null,null,null,null,null,null,null,null,null,null,null,null,null,null,null,null,null,null,null,null,null,null,null,"2021-04-18","B",48,"2021-04-18",1]
[null,null,null,null,null,null,null,null,null,null,null,null,null,null,null,null,null,null,null,null,null,null,null,null,null,null,null,null,null,null,"2021-04-19","C",48,"2021-04-19",1]
[null,null,null,null,null,null,null,null,null,null,null,null,null,null,null,null,null,null,null,null,null,null,null,null,null,null,null,null,null,null,"2021-04-20","D",48,"2021-04-20",1]
[null,null,null,null,null,null,null,null,null,null,null,null,null,null,null,null,null,null,null,null,null,null,null,null,null,null,null,null,null,null,"2021-04-21","E",48,"2021-04-21",1]
[null,null,null,null,null,null,null,null,null,null,null,null,null,null,null,null,null,null,null,null,null,null,null,null,null,null,null,null,null,null,"2021-04-22","F",48,"2021-04-22",1]
[null,null,null,null,null,null,null,null,null,null,null,null,null,null,null,null,null,null,null,null,null,null,null,null,null,null,null,null,null,null,"2021-04-23","G",48,"2021-04-23",1]
[null,null,null,null,null,null,null,null,null,null,null,null,null,null,null,null,null,null,null,null,null,null,null,null,null,null,null,null,null,null,"2021-04-24","H",48,"2021-04-24",1]
[null,null,null,null,null,null,null,null,null,null,null,null,null,null,null,null,null,null,null,null,null,null,null,null,null,null,null,null,null,null,"2021-04-25","B",49,"2021-04-25",1]
[null,null,null,null,null,null,null,null,null,null,null,null,null,null,null,null,null,null,null,null,null,null,null,null,null,null,null,null,null,null,"2021-04-26","C",49,"2021-04-26",1]
[null,null,null,null,null,null,null,null,null,null,null,null,null,null,null,null,null,null,null,null,null,null,null,null,null,null,null,null,null,null,"2021-04-27","D",49,"2021-04-27",1]
[null,null,null,null,null,null,null,null,null,null,null,null,null,null,null,null,null,null,null,null,null,null,null,null,null,null,null,null,null,null,"2021-04-28","E",49,"2021-04-28",1]
[null,null,null,null,null,null,null,null,null,null,null,null,null,null,null,null,null,null,null,null,null,null,null,null,null,null,null,null,null,null,"2021-04-29","F",49,"2021-04-29",1]
[null,null,null,null,null,null,null,null,null,null,null,null,null,null,null,null,null,null,null,null,null,null,null,null,null,null,null,null,null,null,"2021-04-30","G",49,"2021-04-30",1]
[null,null,null,null,null,null,null,null,null,null,null,null,null,null,null,null,null,null,null,null,null,null,null,null,null,null,null,null,null,null,"2021-05-01","Q",45,"2021-05-01",1]
[null,null,null,null,null,null,null,null,null,null,null,null,null,null,null,null,null,null,null,null,null,null,null,null,null,null,null,null,null,null,"2021-05-02","K",46,"2021-05-02",1]
[null,null,null,null,null,null,null,null,null,null,null,null,null,null,null,null,null,null,null,null,null,null,null,null,null,null,null,null,null,null,"2021-05-03","L",46,"2021-05-03",1]
[null,null,null,null,null,null,null,null,null,null,null,null,null,null,null,null,null,null,null,null,null,null,null,null,null,null,null,null,null,null,"2021-05-04","M",46,"2021-05-04",1]
[null,null,null,null,null,null,null,null,null,null,null,null,null,null,null,null,null,null,null,null,null,null,null,null,null,null,null,null,null,null,"2021-05-05","N",46,"2021-05-05",1]
[null,null,null,null,null,null,null,null,null,null,null,null,null,null,null,null,null,null,null,null,null,null,null,null,null,null,null,null,null,null,"2021-05-06","O",46,"2021-05-06",1]
[null,null,null,null,null,null,null,null,null,null,null,null,null,null,null,null,null,null,null,null,null,null,null,null,null,null,null,null,null,null,"2021-05-07","P",46,"2021-05-07",1]
[null,null,null,null,null,null,null,null,null,null,null,null,null,null,null,null,null,null,null,null,null,null,null,null,null,null,null,null,null,null,"2021-05-08","Q",46,"2021-05-08",1]
[null,null,null,null,null,null,null,null,null,null,null,null,null,null,null,null,null,null,null,null,null,null,null,null,null,null,null,null,null,null,"2021-05-09","K",47,"2021-05-09",1]
[null,null,null,null,null,null,null,null,null,null,null,null,null,null,null,null,null,null,null,null,null,null,null,null,null,null,null,null,null,null,"2021-05-10","L",47,"2021-05-10",1]
[null,null,null,null,null,null,null,null,null,null,null,null,null,null,null,null,null,null,null,null,null,null,null,null,null,null,null,null,null,null,"2021-05-11","M",47,"2021-05-11",1]
[null,null,null,null,null,null,null,null,null,null,null,null,null,null,null,null,null,null,null,null,null,null,null,null,null,null,null,null,null,null,"2021-05-12","N",47,"2021-05-12",1]
[null,null,null,null,null,null,null,null,null,null,null,null,null,null,null,null,null,null,null,null,null,null,null,null,null,null,null,null,null,null,"2021-05-13","O",47,"2021-05-13",1]
[null,null,null,null,null,null,null,null,null,null,null,null,null,null,null,null,null,null,null,null,null,null,null,null,null,null,null,null,null,null,"2021-05-14","P",47,"2021-05-14",1]
[null,null,null,null,null,null,null,null,null,null,null,null,null,null,null,null,null,null,null,null,null,null,null,null,null,null,null,null,null,null,"2021-05-15","Q",47,"2021-05-15",1]
[null,null,null,null,null,null,null,null,null,null,null,null,null,null,null,null,null,null,null,null,null,null,null,null,null,null,null,null,null,null,"2021-05-16","K",48,"2021-05-16",1]
[null,null,null,null,null,null,null,null,null,null,null,null,null,null,null,null,null,null,null,null,null,null,null,null,null,null,null,null,null,null,"2021-05-17","L",48,"2021-05-17",1]
[null,null,null,null,null,null,null,null,null,null,null,null,null,null,null,null,null,null,null,null,null,null,null,null,null,null,null,null,null,null,"2021-05-18","M",48,{"$f":"IF(INDIRECT(AF337&AG337)=\"\",\"\",AE337)","v":"2021-05-18"},{"$f":"IF(AH337=\"\",0,1)","v":1}]
[null,null,null,null,null,null,null,null,null,null,null,null,null,null,null,null,null,null,null,null,null,null,null,null,null,null,null,null,null,null,"2021-05-19","N",48,"2021-05-19",1]
[null,null,null,null,null,null,null,null,null,null,null,null,null,null,null,null,null,null,null,null,null,null,null,null,null,null,null,null,null,null,"2021-05-20","O",48,"2021-05-20",1]
[null,null,null,null,null,null,null,null,null,null,null,null,null,null,null,null,null,null,null,null,null,null,null,null,null,null,null,null,null,null,"2021-05-21","P",48,"2021-05-21",1]
[null,null,null,null,null,null,null,null,null,null,null,null,null,null,null,null,null,null,null,null,null,null,null,null,null,null,null,null,null,null,"2021-05-22","Q",48,"2021-05-22",1]
[null,null,null,null,null,null,null,null,null,null,null,null,null,null,null,null,null,null,null,null,null,null,null,null,null,null,null,null,null,null,"2021-05-23","K",49,"2021-05-23",1]
[null,null,null,null,null,null,null,null,null,null,null,null,null,null,null,null,null,null,null,null,null,null,null,null,null,null,null,null,null,null,"2021-05-24","L",49,"2021-05-24",1]
[null,null,null,null,null,null,null,null,null,null,null,null,null,null,null,null,null,null,null,null,null,null,null,null,null,null,null,null,null,null,"2021-05-25","M",49,"2021-05-25",1]
[null,null,null,null,null,null,null,null,null,null,null,null,null,null,null,null,null,null,null,null,null,null,null,null,null,null,null,null,null,null,"2021-05-26","N",49,"2021-05-26",1]
[null,null,null,null,null,null,null,null,null,null,null,null,null,null,null,null,null,null,null,null,null,null,null,null,null,null,null,null,null,null,"2021-05-27","O",49,"2021-05-27",1]
[null,null,null,null,null,null,null,null,null,null,null,null,null,null,null,null,null,null,null,null,null,null,null,null,null,null,null,null,null,null,"2021-05-28","P",49,"2021-05-28",1]
[null,null,null,null,null,null,null,null,null,null,null,null,null,null,null,null,null,null,null,null,null,null,null,null,null,null,null,null,null,null,"2021-05-29","Q",49,"2021-05-29",1]
[null,null,null,null,null,null,null,null,null,null,null,null,null,null,null,null,null,null,null,null,null,null,null,null,null,null,null,null,null,null,"2021-05-30","K",50,"2021-05-30",1]
[null,null,null,null,null,null,null,null,null,null,null,null,null,null,null,null,null,null,null,null,null,null,null,null,null,null,null,null,null,null,"2021-05-31","L",50,"2021-05-31",1]
[null,null,null,null,null,null,null,null,null,null,null,null,null,null,null,null,null,null,null,null,null,null,null,null,null,null,null,null,null,null,"2021-06-01","V",45,"2021-06-01",1]
[null,null,null,null,null,null,null,null,null,null,null,null,null,null,null,null,null,null,null,null,null,null,null,null,null,null,null,null,null,null,"2021-06-02","W",45,"2021-06-02",1]
[null,null,null,null,null,null,null,null,null,null,null,null,null,null,null,null,null,null,null,null,null,null,null,null,null,null,null,null,null,null,"2021-06-03","X",45,"2021-06-03",1]
[null,null,null,null,null,null,null,null,null,null,null,null,null,null,null,null,null,null,null,null,null,null,null,null,null,null,null,null,null,null,"2021-06-04","Y",45,"2021-06-04",1]
[null,null,null,null,null,null,null,null,null,null,null,null,null,null,null,null,null,null,null,null,null,null,null,null,null,null,null,null,null,null,"2021-06-05","Z",45,"2021-06-05",1]
[null,null,null,null,null,null,null,null,null,null,null,null,null,null,null,null,null,null,null,null,null,null,null,null,null,null,null,null,null,null,"2021-06-06","T",46,"2021-06-06",1]
[null,null,null,null,null,null,null,null,null,null,null,null,null,null,null,null,null,null,null,null,null,null,null,null,null,null,null,null,null,null,"2021-06-07","U",46,"2021-06-07",1]
[null,null,null,null,null,null,null,null,null,null,null,null,null,null,null,null,null,null,null,null,null,null,null,null,null,null,null,null,null,null,"2021-06-08","V",46,"2021-06-08",1]
[null,null,null,null,null,null,null,null,null,null,null,null,null,null,null,null,null,null,null,null,null,null,null,null,null,null,null,null,null,null,"2021-06-09","W",46,"2021-06-09",1]
[null,null,null,null,null,null,null,null,null,null,null,null,null,null,null,null,null,null,null,null,null,null,null,null,null,null,null,null,null,null,"2021-06-10","X",46,"2021-06-10",1]
[null,null,null,null,null,null,null,null,null,null,null,null,null,null,null,null,null,null,null,null,null,null,null,null,null,null,null,null,null,null,"2021-06-11","Y",46,"2021-06-11",1]
[null,null,null,null,null,null,null,null,null,null,null,null,null,null,null,null,null,null,null,null,null,null,null,null,null,null,null,null,null,null,"2021-06-12","Z",46,"2021-06-12",1]
[null,null,null,null,null,null,null,null,null,null,null,null,null,null,null,null,null,null,null,null,null,null,null,null,null,null,null,null,null,null,"2021-06-13","T",47,"2021-06-13",1]
[null,null,null,null,null,null,null,null,null,null,null,null,null,null,null,null,null,null,null,null,null,null,null,null,null,null,null,null,null,null,"2021-06-14","U",47,"2021-06-14",1]
[null,null,null,null,null,null,null,null,null,null,null,null,null,null,null,null,null,null,null,null,null,null,null,null,null,null,null,null,null,null,"2021-06-15","V",47,"2021-06-15",1]
[null,null,null,null,null,null,null,null,null,null,null,null,null,null,null,null,null,null,null,null,null,null,null,null,null,null,null,null,null,null,"2021-06-16","W",47,"2021-06-16",1]
[null,null,null,null,null,null,null,null,null,null,null,null,null,null,null,null,null,null,null,null,null,null,null,null,null,null,null,null,null,null,"2021-06-17","X",47,"2021-06-17",1]
[null,null,null,null,null,null,null,null,null,null,null,null,null,null,null,null,null,null,null,null,null,null,null,null,null,null,null,null,null,null,"2021-06-18","Y",47,"2021-06-18",1]
[null,null,null,null,null,null,null,null,null,null,null,null,null,null,null,null,null,null,null,null,null,null,null,null,null,null,null,null,null,null,"2021-06-19","Z",47,"2021-06-19",1]
[null,null,null,null,null,null,null,null,null,null,null,null,null,null,null,null,null,null,null,null,null,null,null,null,null,null,null,null,null,null,"2021-06-20","T",48,"2021-06-20",1]
[null,null,null,null,null,null,null,null,null,null,null,null,null,null,null,null,null,null,null,null,null,null,null,null,null,null,null,null,null,null,"2021-06-21","U",48,"2021-06-21",1]
[null,null,null,null,null,null,null,null,null,null,null,null,null,null,null,null,null,null,null,null,null,null,null,null,null,null,null,null,null,null,"2021-06-22","V",48,"2021-06-22",1]
[null,null,null,null,null,null,null,null,null,null,null,null,null,null,null,null,null,null,null,null,null,null,null,null,null,null,null,null,null,null,"2021-06-23","W",48,"2021-06-23",1]
[null,null,null,null,null,null,null,null,null,null,null,null,null,null,null,null,null,null,null,null,null,null,null,null,null,null,null,null,null,null,"2021-06-24","X",48,"2021-06-24",1]
[null,null,null,null,null,null,null,null,null,null,null,null,null,null,null,null,null,null,null,null,null,null,null,null,null,null,null,null,null,null,"2021-06-25","Y",48,"2021-06-25",1]
[null,null,null,null,null,null,null,null,null,null,null,null,null,null,null,null,null,null,null,null,null,null,null,null,null,null,null,null,null,null,"2021-06-26","Z",48,"2021-06-26",1]
[null,null,null,null,null,null,null,null,null,null,null,null,null,null,null,null,null,null,null,null,null,null,null,null,null,null,null,null,null,null,"2021-06-27","T",49,"2021-06-27",1]
[null,null,null,null,null,null,null,null,null,null,null,null,null,null,null,null,null,null,null,null,null,null,null,null,null,null,null,null,null,null,"2021-06-28","U",49,"2021-06-28",1]
[null,null,null,null,null,null,null,null,null,null,null,null,null,null,null,null,null,null,null,null,null,null,null,null,null,null,null,null,null,null,"2021-06-29","V",49,"2021-06-29",1]
[null,null,null,null,null,null,null,null,null,null,null,null,null,null,null,null,null,null,null,null,null,null,null,null,null,null,null,null,null,null,"2021-06-30","W",49,"2021-06-30",1]

{"sheet":"data","index":1,"n_rows":214,"n_cols":16,"rows_kept":214,"cut":false,"hidden":false,"merged":[]}
["Prog_Code","type","School_Name","Prog_Name","Rate_ann","Rate_daily","total_days","start_date","end_date",null,null,null,null,null,"366 annual rate calculation"]
[]
["5017A","Res Ed","Amego","Autistic",248738.27,681.47471232876705,365,null,null,{"$f":"IF(C3<>\"Summer\", \"No\", \"Yes\")","v":"No"},{"$f":"A3& \" - \"&C3 & \" - \"&D3","v":"5017A - Amego - Autistic"}," ",{"$f":"TRIM(A3)","v":"5017A"},null,{"$f":"IF(G3=366,366*F3,)","v":0}," "]
["5017B","Day","Amego","Amego School Day ",124078.452516,523.53777432911397,237,null,null,"No","5017B - Amego - Amego School Day "," ","5017B",null,{"$f":"IF(G4=366,366*F4,)","v":0}]
["5021C","Day","American School for the Deaf","MA Educational/Day",69160,384.22222222222223,180,null,null,"No","5021C - American School for the Deaf - MA Educational/Day"," ","5021C"]
["5021E","Res Ed","American School for the Deaf","MA Educational/Residential",99797,554.42777777777781,180,null,null,"No","5021E - American School for the Deaf - MA Educational/Residential"," ","5021E",null,{"$f":"IF(G6=366,366*F6,)","v":0}]
["5021G","Res Ed","American School for the Deaf","MA PACES 365",489267,1340.4575342465753,365,null,null,"No","5021G - American School for the Deaf - MA PACES 365"," ","5021G",null,{"$f":"IF(G7=366,366*F7,)","v":0}]
["5034A","Res Ed","Archway, Inc.","Archway",181577.39,497.47230136986303,365,null,null,"No","5034A - Archway, Inc. - Archway"," ","5034A",null,{"$f":"IF(G8=366,366*F8,)","v":0}]
["5036A","Day","McLean Hospital, Inc.","Arlington-Academy",74850.929999999993,378.03499999999997,198,null,null,"No","5036A - McLean Hospital, Inc. - Arlington-Academy"," ","5036A"]
["5036I","Day","McLean Hospital, Inc.","CNS",108723.05,503.34745370370371,216,null,null,"No","5036I - McLean Hospital, Inc. - CNS"," ","5036I",null,{"$f":"IF(G10=366,366*F10,)","v":0}]
["5049A","Day","Mass. Found. for Learning Disabilities","White Oak School",49079.43,272.6635,180,null,null,"No","5049A - Mass. Found. for Learning Disabilities - White Oak School"," ","5049A",null,0]
["5088D","Res Ed","Hillcrest Educational Centers, Inc.","Hillcrest",217335.96,595.44098630136989,365,null,null,"No","5088D - Hillcrest Educational Centers, Inc. - Hillcrest"," ","5088D",null,0]
["5088E","Res Ed","Hillcrest Educational Centers, Inc.","Intensive Tx Unit",351937.16,964.21139726027388,365,null,null,"No","5088E - Hillcrest Educational Centers, Inc. - Intensive Tx Unit"," ","5088E",null,0]
["5088F","Day","Hillcrest Educational Centers, Inc.","Housatonic Academy",59681.47,276.30310185185186,216,null,null,"No","5088F - Hillcrest Educational Centers, Inc. - Housatonic Academy"," ","5088F",null,0]
["5088G","Res Ed","Hillcrest Educational Centers, Inc.","Autism Spectrum Disorders",373153.64,1022.3387397260275,365,null,null,"No","5088G - Hillcrest Educational Centers, Inc. - Autism Spectrum Disorders"," ","5088G",null,0]
["5095A","Res Ed","Home for Little Wanderers","Southeast Campus Res.",224962.3,616.33506849315063,365,null,null,"No","5095A - Home for Little Wanderers - Southeast Campus Res."," ","5095A",null,0]
["5095B","Day","Home for Little Wanderers","Southeast Campus Day",75046.880000000005,347.4392592592593,216,null,null,"No","5095B - Home for Little Wanderers - Southeast Campus Day"," ","5095B",null,0]
["5097A","Day","Judge Baker Children's Center, Inc.","Manville",96110.91,533.94950000000006,180,null,null,"No","5097A - Judge Baker Children's Center, Inc. - Manville"," ","5097A",null,0]
["5097B","Summer","Judge Baker Children's Center, Inc.","Manville-Summer",6665.3,333.26499999999999,20,null,null,"No","5097B - Judge Baker Children's Center, Inc. - Manville-Summer"," ","5097B",null,0]
["5110A","Summer","COMPASS, Inc.","Summer",7891.6,328.81666666666666,24,null,null,"No","5110A - COMPASS, Inc. - Summer"," ","5110A",null,0]
["5110B","Day","COMPASS, Inc.","Short Term Crisis",31326.66,174.03700000000001,180,null,null,"No","5110B - COMPASS, Inc. - Short Term Crisis"," ","5110B",null,0]
["5110C","Day","COMPASS, Inc.","766 Day School",74930.59,416.28105555555555,180,null,null,"No","5110C - COMPASS, Inc. - 766 Day School"," ","5110C",null,0]
["5112B","Day","Justice Resource Institute","Bay Cove",80080.83,364.00377272727275,220,null,null,"No","5112B - Justice Resource Institute - Bay Cove"," ","5112B",null,0]
["5113A","Day","New England Pediatric Nursing Home","Pediatric",64458.080000000002,256.80509960159361,251,null,null,"No","5113A - New England Pediatric Nursing Home - Pediatric"," ","5113A",null,0]
["5120A","Res Ed","Judge Rotenberg Educational Center","Judge Rotenberg",277915.18,761.41145205479449,365,null,null,"No","5120A - Judge Rotenberg Educational Center - Judge Rotenberg"," ","5120A",null,0]
["5121A","Res Ed","Bellefaire Jewish  Childrens Bureau","Monarch School",212302.18,581.64980821917811,365,null,null,"No","5121A - Bellefaire Jewish  Childrens Bureau - Monarch School"," ","5121A",null,0]
["5121B","Day","Bellefaire Jewish  Childrens Bureau","Monarch School",85585.72,475.47622222222225,180,null,null,"No","5121B - Bellefaire Jewish  Childrens Bureau - Monarch School"," ","5121B",null,0]
["5127C","Res Ed","Justice Resource Institute","Berkshire Meadows",237166.28,649.77063013698626,365,null,null,"No","5127C - Justice Resource Institute - Berkshire Meadows"," ","5127C",null,0]
["5127D","Day","Justice Resource Institute","Victor School",58982.080000000002,273.06518518518521,216,null,null,"No","5127D - Justice Resource Institute - Victor School"," ","5127D",null,0]
["5134B","Day","Beverly School for the Deaf","BSD",81414.570000000007,399.09102941176474,204,null,null,"No","5134B - Beverly School for the Deaf - BSD"," ","5134B"]
["5134C","Day","Beverly School for the Deaf","Child. Comm. Ctr.",99590.32,488.18784313725496,204,null,null,"No","5134C - Beverly School for the Deaf - Child. Comm. Ctr."," ","5134C"]
["5154A","Day","Boston Higashi School","Day Education",80877.702000000005,372.70830414746547,217,null,null,"No","5154A - Boston Higashi School - Day Education"," ","5154A",null,{"$f":"IF(G32=366,366*F32,)","v":0}]
["5154B","Res Ed","Boston Higashi School","Residential Ed.",198031.3,651.41874999999993,304,null,null,"No","5154B - Boston Higashi School - Residential Ed."," ","5154B",null,{"$f":"IF(G33=366,366*F33,)","v":0}]
["5154C","Res Ed","Boston Higashi School","Residential Ed. 365",237759.12,651.39484931506843,365,null,null,"No","5154C - Boston Higashi School - Residential Ed. 365"," ","5154C",null,{"$f":"IF(G34=366,366*F34,)","v":0}]
["5157A","Day","Boston College Campus School","Campus School",95706.032000000007,483.36379797979799,198,null,null,"No","5157A - Boston College Campus School - Campus School"," ","5157A",null,{"$f":"IF(G35=366,366*F35,)","v":0}]
["5160C","Day","Brandon Residential Treatment Center","Intensive Day",82981.37,384.17300925925923,216,null,null,"No","5160C - Brandon Residential Treatment Center - Intensive Day"," ","5160C"]
["5160D","Res Ed","Brandon Residential Treatment Center","Intensive Res.",211044,578.2027397260274,365,null,null,"No","5160D - Brandon Residential Treatment Center - Intensive Res."," ","5160D"]
["5165A","Day","Broccoli Hall, Inc.","Corwin-Russell",40304.199999999997,223.9122222222222,180,null,null,"No","5165A - Broccoli Hall, Inc. - Corwin-Russell"," ","5165A",null,{"$f":"IF(G38=366,366*F38,)","v":0}]
["5177G","Day","Specialized Education Services, Inc.","High Road School of MA.",41888.49,232.71383333333333,180,null,null,"No","5177G - Specialized Education Services, Inc. - High Road School of MA."," ","5177G",null,0]
["5177H","Summer","Specialized Education Services, Inc.","High Road School of MA.",6558.76,218.62533333333334,30,null,null,"No","5177H - Specialized Education Services, Inc. - High Road School of MA."," ","5177H",null,0]
["5224A","Day","Center for Applied Behavioral Instruction","Day Program",95849.91,424.11464601769916,226,null,null,"No","5224A - Center for Applied Behavioral Instruction - Day Program"," ","5224A",null,0]
["5227A","Day","Springdale Education Center","Springdale Ed. Center",76028.58,345.58445454545455,220,null,null,"No","5227A - Springdale Education Center - Springdale Ed. Center"," ","5227A",null,0]
["5227B","Day","Center for School Crisis Inter. & Assess.","Center School",81303.95,369.56340909090909,220,null,null,"No","5227B - Center for School Crisis Inter. & Assess. - Center School"," ","5227B",null,0]
["5238E","Day","F. L. Chamberlain School, Inc.","Day",104620.03,484.35,216,null,null,"No","5238E - F. L. Chamberlain School, Inc. - Day"," ","5238E"]
["5238F","Res Ed","F. L. Chamberlain School, Inc.","365 Day Residential",176121.28,482.52,365,null,null,"No","5238F - F. L. Chamberlain School, Inc. - 365 Day Residential"," ","5238F",null,{"$f":"IF(G45=366,366*F45,)","v":0}]
["5242A","Day","Seven Hills Foundation, Inc.","Groton - Clin Nursery",51470.38,205.06127490039839,251,null,null,"No","5242A - Seven Hills Foundation, Inc. - Groton - Clin Nursery"," ","5242A",null,0]
["5249A","Day","Children's Study Home","Mill Pond Day Program",52292.36,242.09425925925927,216,null,null,"No","5249A - Children's Study Home - Mill Pond Day Program"," ","5249A",null,0]
["5249G","Day","Children's Study Home","Curtis Blake Day School",44747.94,248.59966666666668,180,null,null,"No","5249G - Children's Study Home - Curtis Blake Day School"," ","5249G",null,0]
["5253A","Day","Professional Ctr. for Handicapped Child.","Day Program",91176.53,460.48752525252524,198,null,null,"No","5253A - Professional Ctr. for Handicapped Child. - Day Program"," ","5253A",null,0]
["5257A","Day","Clarke School for the Deaf","Day Education",61622.436767999992,342.34687093333326,180,null,null,"No","5257A - Clarke School for the Deaf - Day Education"," ","5257A",null,0]
["5257B","Day","Clarke School for the Deaf","Preschool",51957.706854000011,262.41266087878796,198,null,null,"No","5257B - Clarke School for the Deaf - Preschool"," ","5257B",null,0]
["5257D","Day","Clarke School for the Deaf","Clarke School East",57422.39,299.07494791666664,192,null,null,"No","5257D - Clarke School for the Deaf - Clarke School East"," ","5257D",null,0]
["5258A","Day","Clearway School, Inc.","766 School",51180.68,284.33711111111108,180,null,null,"No","5258A - Clearway School, Inc. - 766 School"," ","5258A"]
["5258B","Summer","Clearway School, Inc.","Summer",5912.97,246.37375,24,null,null,"No","5258B - Clearway School, Inc. - Summer"," ","5258B"]
["5265A","Day","Community Therapeutic Day School","Day School",81708.11,453.93394444444442,180,null,null,"No","5265A - Community Therapeutic Day School - Day School"," ","5265A",null,{"$f":"IF(G55=366,366*F55,)","v":0}]
["5265B","Summer","Community Therapeutic Day School","Summer",7269.95,363.4975,20,null,null,"No","5265B - Community Therapeutic Day School - Summer"," ","5265B",null,0]
["5272A","Day","Crossroads School  Children, Inc.","Crossroads School",125847.46830600001,556.84720489380538,226,null,null,"No","5272A - Crossroads School  Children, Inc. - Crossroads School"," ","5272A",null,0]
["5274A","Day","Cotting School, Inc.","Cotting Day",82630.679999999993,459.05933333333331,180,null,null,"No","5274A - Cotting School, Inc. - Cotting Day"," ","5274A",null,0]
["5274B","Summer","Cotting School, Inc.","Cotting Summer",7956.94,318.27760000000001,25,null,null,"No","5274B - Cotting School, Inc. - Cotting Summer"," ","5274B",null,0]
["5274E","Res Ed","Cotting School, Inc.","HOPEhouse",100542.52,558.56955555555555,180,null,null,"No","5274E - Cotting School, Inc. - HOPEhouse"," ","5274E",null,0]
["5276A","Res Ed","Crotched Mountain Rehabilitation","Residential",249407.04,683.30695890410959,365,null,null,"No","5276A - Crotched Mountain Rehabilitation - Residential"," ","5276A",null,0]
["5276D","Day","Crotched Mountain Rehabilitation","Day",118538.2,538.80999999999995,220,null,null,"No","5276D - Crotched Mountain Rehabilitation - Day"," ","5276D"]
["5296A","Day","Cardinal Cushing School & Training Ctr.","Day/Vocational",97195.375998000003,449.97859258333335,216,null,null,"No","5296A - Cardinal Cushing School & Training Ctr. - Day/Vocational"," ","5296A"]
["5296C","Res Ed","Cardinal Cushing School & Training Ctr.","Residential",253807.15380000003,695.36206520547955,365,null,null,"No","5296C - Cardinal Cushing School & Training Ctr. - Residential"," ","5296C",null,{"$f":"IF(G64=366,366*F64,)","v":0}]
["5297A","Res Ed","Crystal Springs, Inc.","Main Program",295099.69,808.49230136986307,365,null,null,"No","5297A - Crystal Springs, Inc. - Main Program"," ","5297A",null,{"$f":"IF(G65=366,366*F65,)","v":0}]
["5303A","Res Ed","Fall River Deaconess, Inc.","Residential Program",173554.55,475.49191780821917,365,null,null,"No","5303A - Fall River Deaconess, Inc. - Residential Program"," ","5303A",null,{"$f":"IF(G66=366,366*F66,)","v":0}]
["5303C","Day","Fall River Deaconess, Inc.","Day Program",61174.01,283.21300925925925,216,null,null,{"$f":"IF(C67<>\"Summer\", \"No\", \"Yes\")","v":"No"},{"$f":"A67& \" - \"&C67 & \" - \"&D67","v":"5303C - Fall River Deaconess, Inc. - Day Program"}," ",{"$f":"TRIM(A67)","v":"5303C"},null,{"$f":"IF(G67=366,366*F67,)","v":0}]
["5306B","Day","Schools for Children","Dearborn Academy",89307.62,496.1534444444444,180,null,null,"No","5306B - Schools for Children - Dearborn Academy"," ","5306B",null,{"$f":"IF(G68=366,366*F68,)","v":0}]
["5306C","Summer","Schools for Children","Dearborn Summer",5918.43,197.28100000000001,30,null,null,"No","5306C - Schools for Children - Dearborn Summer"," ","5306C"]
["5306D","Day","Schools for Children","Seaport Campus",71843.070000000007,399.12816666666669,180,null,null,"No","5306D - Schools for Children - Seaport Campus"," ","5306D",null,{"$f":"IF(G70=366,366*F70,)","v":0}]
["5324B","Res Ed","Devereux Foundation of Mass., Inc.","West Meadow",205095.7,561.90602739726035,365,null,null,"No","5324B - Devereux Foundation of Mass., Inc. - West Meadow"," ","5324B",null,0]
["5324D","Res Ed","Devereux -Ackerman Academy","Residential/Treatment Services ",127629.55,349.67,365,null,null,"No","5324D - Devereux -Ackerman Academy - Residential/Treatment Services "," ","5324D",null,0]
["5324E","Res. Ed","Devereux Glenholme","Glenholme",138715,380.04109589041099,365,null,null,"No","5324E - Devereux Glenholme - Glenholme"," ","5324E",null,0]
["5324P","Day","Devereux Foundation of Mass., Inc.","Day Program",62152.85,287.74467592592595,216,null,null,"No","5324P - Devereux Foundation of Mass., Inc. - Day Program"," ","5324P",null,0]
["5338C","Res Ed","Easter Seals of New Hampshire","Jolicouer - Krol Residential - Regular",201489.75,552.03,365,null,null,"No","5338C - Easter Seals of New Hampshire - Jolicouer - Krol Residential - Regular"," ","5338C",null,0]
["5338E","Res Ed","Easter Seals of New Hampshire","Jolicouer - Zachery Road Residential - Regular",219830.01,602.274,365,null,null,"No","5338E - Easter Seals of New Hampshire - Jolicouer - Zachery Road Residential - Regular"," ","5338E",null,0]
["5338F","Res Ed","Easter Seals of New Hampshire","Jolicouer - Zachery Road Residential - Intensive",353627.85,968.84342465753423,365,null,null,"No","5338F - Easter Seals of New Hampshire - Jolicouer - Zachery Road Residential - Intensive",null,"5338F"]
["5338G","Res Ed","Easter Seals of New Hampshire","Jolicouer - House III Males Residential - Regular",201489.75,552.02671232876708,365,null,null,{"$f":"IF(C78<>\"Summer\", \"No\", \"Yes\")","v":"No"},{"$f":"A78& \" - \"&C78 & \" - \"&D78","v":"5338G - Easter Seals of New Hampshire - Jolicouer - House III Males Residential - Regular"},null,{"$f":"TRIM(A78)","v":"5338G"}]
["5338I","Res Ed","Easter Seals of New Hampshire","DVPMTL Disabled MSchool - Lancaster - Regular",223577.67,612.54156164383562,365,null,null,"No","5338I - Easter Seals of New Hampshire - DVPMTL Disabled MSchool - Lancaster - Regular"," ","5338I"]
["5338J","Res Ed","Easter Seals of New Hampshire","DVPMTL Disabled MSchool - Lancaster - Int.",357375.51,979.11098630136985,365,null,null,"No","5338J - Easter Seals of New Hampshire - DVPMTL Disabled MSchool - Lancaster - Int."," ","5338J"]
["5341B ","Day","Lifespan School Solutions/Bradley Schools","Standard Rate",54395,253,215,null,null,"No","5341B  - Lifespan School Solutions/Bradley Schools - Standard Rate"," ","5341B ",null,{"$f":"IF(G81=366,366*F81,)","v":0}]
["5341D","Day","Lifespan School Solutions/Bradley Schools"," Intensive Rate",64500,300,215,null,null,"No","5341D - Lifespan School Solutions/Bradley Schools -  Intensive Rate"," ","5341D",null,0]
["5341E","Day","Lifespan School Solutions/Bradley Schools"," Intensive Rate",64500,300,215,null,null,"No","5341E - Lifespan School Solutions/Bradley Schools -  Intensive Rate"," ","5341E",null,0]
["5341J","Day","Lifespan School Solutions/Bradley Schools","Standard Rate",54395,253,215,null,null,"No","5341J - Lifespan School Solutions/Bradley Schools - Standard Rate"," ","5341J",null,0]
["5341N","Day","Lifespan School Solutions/Bradley Schools","Clinical Intensive",71810,334,215,null,null,"No","5341N - Lifespan School Solutions/Bradley Schools - Clinical Intensive"," ","5341N",null,0]
["5341P","Day","Lifespan School Solutions/Bradley Schools","Partnership Standard Rate",46010,214,215,null,null,"No","5341P - Lifespan School Solutions/Bradley Schools - Partnership Standard Rate"," ","5341P",null,0]
["5341S","Day","Lifespan School Solutions/Bradley Schools","Bradley School North, Intensive",64500,300,215,null,null,"No","5341S - Lifespan School Solutions/Bradley Schools - Bradley School North, Intensive"," ","5341S",null,0]
["5341T","Day","Lifespan School Solutions/Bradley Schools","Bradley School North, Standard",54395,253,215,null,null,"No","5341T - Lifespan School Solutions/Bradley Schools - Bradley School North, Standard"," ","5341T",null,0]
["5343B","Res Ed","New England Center for Children","N.E.C.C. Residen",250049.44,685.06695890410958,365,null,null,"No","5343B - New England Center for Children - N.E.C.C. Residen"," ","5343B",null,0]
["5343C","Res Ed","New England Center for Children","N.E.C.C. Severe",363879.49,996.93010958904108,365,null,null,"No","5343C - New England Center for Children - N.E.C.C. Severe"," ","5343C",null,0]
["5343D","Day","New England Center for Children","Intensive Instruction",125419.65,554.95420353982297,226,null,null,"No","5343D - New England Center for Children - Intensive Instruction"," ","5343D"]
["5343E","Res Ed","New England Center for Children","Intermediate",336589.41,922.16276712328761,365,null,null,"No","5343E - New England Center for Children - Intermediate"," ","5343E",null,{"$f":"IF(G92=366,366*F92,)","v":0}]
["5360A","Day","Milestones, Inc.","Milestones Day School",99962.95,462.79143518518515,216,null,null,"No","5360A - Milestones, Inc. - Milestones Day School"," ","5360A",null,0]
["5365A","Day","R. F. Kennedy Action Corps","Exp. With Travel",67393.59,312.00736111111109,216,null,null,"No","5365A - R. F. Kennedy Action Corps - Exp. With Travel"," ","5365A",null,0]
["5381A","Day","James Farr Academy","Farr Academy",93160.85,517.56027777777786,180,null,null,"No","5381A - James Farr Academy - Farr Academy"," ","5381A",null,0]
["5381C","Summer","James Farr Academy","Farr Academy Summer",8532.1799999999985,341.28719999999993,25,null,null,"No","5381C - James Farr Academy - Farr Academy Summer"," ","5381C",null,0]
["5385A","Res Ed","Evergreen Center, Inc.","BDU",254556.32,697.41457534246581,365,null,null,"No","5385A - Evergreen Center, Inc. - BDU"," ","5385A",null,0]
["5385B","Res Ed","Evergreen Center, Inc.","Multi H.",230109.52,630.43704109589044,365,null,null,"No","5385B - Evergreen Center, Inc. - Multi H."," ","5385B",null,0]
["5415A","Day","Hopeful Journeys Education Center, Inc.","Hopeful Journeys ",123701.97,572.69430555555562,216,null,null,"No","5415A - Hopeful Journeys Education Center, Inc. - Hopeful Journeys "," ","5415A",null,0]
["5440A","Day","Margaret Gifford School","Gifford School",65897.39,366.09661111111109,180,null,null,"No","5440A - Margaret Gifford School - Gifford School"," ","5440A",null,0]
["5440B","Summer","Margaret Gifford School","Gifford Summer",6086.94,304.34699999999998,20,null,null,"No","5440B - Margaret Gifford School - Gifford Summer"," ","5440B",null,0]
["5451A","Res Ed","Greenwood School","Greenwood School",78826.240000000005,382.6516504854369,206,null,null,"No","5451A - Greenwood School - Greenwood School"," ","5451A",null,0]
["5451B","Day","Greenwood School","Greenwood School",59426.239999999998,390.96210526315787,152,null,null,"No","5451B - Greenwood School - Greenwood School"," ","5451B",null,0]
["5454B","Day","Groden Center","Intensive Day Program fro Res students                ( 33 3/4 hours ) ",82385,376.18721461187215,219,null,null,"No","5454B - Groden Center - Intensive Day Program fro Res students                ( 33 3/4 hours ) "," ","5454B",null,0]
["5454C","Res Ed","Groden Center","Resid. Inten.",243180,666.2465753424658,365,null,null,"No","5454C - Groden Center - Resid. Inten."," ","5454C",null,0]
["5454E","Day","Groden Center","Intensive Day Program Non Res Students             (30 hours )",73231,334.38812785388126,219,null,null,"No","5454E - Groden Center - Intensive Day Program Non Res Students             (30 hours )"," ","5454E",null,0]
["5472A","Res","Grove","Grove School",144000,498.26989619377161,289,null,null,"No","5472A - Grove - Grove School"," ","5472A",null,0]
["5488A","Day","Horace Mann","Darnell School",98454.36,445.49484162895931,221,null,null,"No","5488A - Horace Mann - Darnell School"," ","5488A",null,0]
["5495A","Res Ed","HMS School for Children with Cerebral Palsy","Residential Program 7 days",163300,628.07692307692309,260,null,null,"No","5495A - HMS School for Children with Cerebral Palsy - Residential Program 7 days"," ","5495A",null,0]
["5495B","Day","HMS School for Children with Cerebral Palsy","Extended school Year",13770,510,27,null,null,"No","5495B - HMS School for Children with Cerebral Palsy - Extended school Year"," ","5495B",null,0]
["5498B","Day","Lighthouse School","Comp. Services Prog.",89011.37,494.50761111111109,180,null,null,"No","5498B - Lighthouse School - Comp. Services Prog."," ","5498B",null,0]
["5530C","Day","Devereux Foundation of Mass., Inc.","CARES",92347.06,427.53268518518519,216,null,null,"No","5530C - Devereux Foundation of Mass., Inc. - CARES"," ","5530C",null,0]
["5534A","Res Ed","Italian Home for Children, Inc.","Italian Home Res",201167.82,551.14471232876713,365,null,null,"No","5534A - Italian Home for Children, Inc. - Italian Home Res"," ","5534A",null,0]
["5534B","Day","Italian Home for Children, Inc.","Italian Home Day",87624.04,398.29109090909088,220,null,null,"No","5534B - Italian Home for Children, Inc. - Italian Home Day"," ","5534B",null,0]
["5579A","Day","Kennedy Donovan Center","Developmental Day",101253.86,430.86748936170216,235,null,null,"No","5579A - Kennedy Donovan Center - Developmental Day"," ","5579A",null,0]
["5582A","Day","Franciscan Children's Hospital","Kennedy Day",93089.36,465.4468,200,null,null,"No","5582A - Franciscan Children's Hospital - Kennedy Day"," ","5582A",null,0]
["5607A","Day","Landmark Foundation","Landmark Day",57596.23,319.97905555555559,180,null,null,"No","5607A - Landmark Foundation - Landmark Day"," ","5607A",null,0]
["5607B","Res Ed","Landmark Foundation","Landmark Residential",76575.03,319.06262499999997,240,null,null,"No","5607B - Landmark Foundation - Landmark Residential"," ","5607B",null,0]
["5614A","Day","League School of Boston","Day Ed",105284.47,487.42810185185186,216,null,null,"No","5614A - League School of Boston - Day Ed"," ","5614A",null,0]
["5614B","Res Ed","League School of Boston","Fine House",224785.05,615.84945205479448,365,null,null,"No","5614B - League School of Boston - Fine House"," ","5614B",null,0]
["5617B","Res Ed","Learning Ctr. for the Deaf","Walden",352060.15999999997,964.54838356164373,365,null,null,"No","5617B - Learning Ctr. for the Deaf - Walden"," ","5617B"]
["5617G","Day","Learning Ctr. for the Deaf","Day",63492.26,320.6679797979798,198,null,null,"No","5617G - Learning Ctr. for the Deaf - Day"," ","5617G"]
["5617H","Day","Learning Ctr. for the Deaf","Intensive Day",89593.51,452.49247474747472,198,null,null,"No","5617H - Learning Ctr. for the Deaf - Intensive Day"," ","5617H",null,{"$f":"IF(G123=366,366*F123,)","v":0}]
["5617I","Res Ed","Learning Ctr. for the Deaf","Residential",116212.45,586.93156565656568,198,null,null,"No","5617I - Learning Ctr. for the Deaf - Residential"," ","5617I",null,0]
["5620B","Day","The learning Clinic, Inc.","Day",74970.8,325.96000000000004,230,null,null,"No","5620B - The learning Clinic, Inc. - Day"," ","5620B",null,0]
["6252A","Res Ed","R. F. Kennedy Action Corps","RFK Lancaster Program","Closed","Closed",365,null,null,"No","6252A - R. F. Kennedy Action Corps - RFK Lancaster Program"," ","6252A",null,0]
["5620E","Res","The learning Clinic, Inc.","Residential",147390.75,403.81027397260272,365,null,null,"No","5620E - The learning Clinic, Inc. - Residential"," ","5620E",null,0]
["5625A","Day","Learning Skills Academy, Inc.","Learning Skills Academy",49856.4,276.98,180,null,null,"No","5625A - Learning Skills Academy, Inc. - Learning Skills Academy"," ","5625A",null,0]
["5625B","Day","Learning Skills Academy, Inc.","Summer",2176.64,136.04,16,null,null,"No","5625B - Learning Skills Academy, Inc. - Summer"," ","5625B",null,0]
["5643A","Day","Little People's School","Learning Prep School",57242.22,318.01233333333334,180,null,null,"No","5643A - Little People's School - Learning Prep School"," ","5643A",null,0]
["5685B","Res Ed","MAB Community Services","IVY Street School",252146.92,690.81347945205482,365,null,null,"No","5685B - MAB Community Services - IVY Street School"," ","5685B",null,0]
["5685C","Day","MAB Community Services","IVY Street School Day Program",116403.95,483.00394190871367,241,null,null,"No","5685C - MAB Community Services - IVY Street School Day Program"," ","5685C",null,0]
["5695A","Day","Justice Resource Institute"," Granite Day Ed",68174.11,337.49559405940596,202,null,null,{"$f":"IF(C133<>\"Summer\", \"No\", \"Yes\")","v":"No"},{"$f":"A133& \" - \"&C133 & \" - \"&D133","v":"5695A - Justice Resource Institute -  Granite Day Ed"}," ",{"$f":"TRIM(A133)","v":"5695A"},null,0]
["5706B","Res Ed","May Institute","Randolph Res.",254311.5,696.74383561643833,365,null,null,"No","5706B - May Institute - Randolph Res."," ","5706B"]
["5706E","Day","May Institute","Randolph Day",122302.85,520.43765957446806,235,null,null,"No","5706E - May Institute - Randolph Day"," ","5706E",null,{"$f":"IF(G135=366,366*F135,)","v":0}]
["5706G","Day","May Institute"," Brockton Rehabilitative D",122840.53,522.72565957446807,235,null,null,"No","5706G - May Institute -  Brockton Rehabilitative D"," ","5706G",null,0]
["5706H","Res Ed","May Institute","Brockton Rehabilitative R",266583.43,730.36556164383558,365,null,null,"No","5706H - May Institute - Brockton Rehabilitative R"," ","5706H",null,0]
["5706N","Day","May Institute","West Springfield",124812.71,562.21941441441447,222,null,null,"No","5706N - May Institute - West Springfield"," ","5706N",null,0]
["5709A","Day","McAuley Nazareth Home for Boys","Nazareth Day",36008.6,166.70648148148146,216,null,null,"No","5709A - McAuley Nazareth Home for Boys - Nazareth Day"," ","5709A",null,0]
["5709B","Res Ed","McAuley Nazareth Home for Boys","McAuley Nazareth",157272.35,430.88315068493154,365,null,null,"No","5709B - McAuley Nazareth Home for Boys - McAuley Nazareth"," ","5709B",null,0]
["5710B","Res Ed","Melmark Home, Inc.","Melmark N.E.",283101.2,775.61972602739729,365,null,null,"No","5710B - Melmark Home, Inc. - Melmark N.E."," ","5710B"]
["5710C","Day","Melmark Home, Inc.","Melmark Day",120068.02,506.61611814345991,237,null,null,"No","5710C - Melmark Home, Inc. - Melmark Day"," ","5710C"]
["5730A","Day","Meeting Street School","Basic",71443,324.7409090909091,220,null,null,"No","5730A - Meeting Street School - Basic"," ","5730A",null,{"$f":"IF(G143=366,366*F143,)","v":0}]
["5730C","Day","Meeting Street School","Standard rate with 1 to 1 ",128192,582.69090909090914,220,null,null,"No","5730C - Meeting Street School - Standard rate with 1 to 1 "," ","5730C",null,0]
["5734A","Day","Merrimac Heights Academy ","Merrimac Heights Academy Day Program",88621.08,492.33933333333334,180,null,null,"No","5734A - Merrimac Heights Academy  - Merrimac Heights Academy Day Program"," ","5734A",null,0]
["5752A","Day","Nashoba Learning Group, Inc.","Nashoba Learning ",114264.89,529.0041203703704,216,null,null,"No","5752A - Nashoba Learning Group, Inc. - Nashoba Learning "," ","5752A",null,0]
["5760A","Day","N. E. Adolescent Research Institute","N.E.A.R.I.",78729.929999999993,357.86331818181816,220,null,null,"No","5760A - N. E. Adolescent Research Institute - N.E.A.R.I."," ","5760A",null,0]
["5785E","Day","Home for Little Wanderers","Clifford Day",84735.932796000008,470.75518220000004,180,null,null,"No","5785E - Home for Little Wanderers - Clifford Day"," ","5785E",null,0]
["5785F","Res Ed","Home for Little Wanderers","Clifford Res",228718.23147600002,626.62529171506856,365,null,null,"No","5785F - Home for Little Wanderers - Clifford Res"," ","5785F",null,0]
["5788A","Day","New England Academy","NE Academy",66767.19,337.20803030303034,198,null,null,"No","5788A - New England Academy - NE Academy"," ","5788A",null,0]
["5811A","Day","Cutchins Programs for Children & Fam.","New Directions",78585.015912000003,360.48172436697251,218,null,null,"No","5811A - Cutchins Programs for Children & Fam. - New Directions"," ","5811A",null,0]
["5885A","Day","Pathways","Pathways Strategic Teaching Center",90000,401.78571428571428,224,null,null,"No","5885A - Pathways - Pathways Strategic Teaching Center"," ","5885A",null,0]
["5887A","Res Ed","Dr. Franklin Perkins School, Inc.","Intensive",226794.27708000003,621.35418378082204,365,null,null,"No","5887A - Dr. Franklin Perkins School, Inc. - Intensive"," ","5887A",null,0]
["5887B","Day ","Dr. Franklin Perkins School, Inc.","Day Program",76994.537838000004,353.18595338532111,218,null,null,"No","5887B - Dr. Franklin Perkins School, Inc. - Day Program"," ","5887B"]
["5889B","Res Ed","Perkins School for the Blind","Blind",156246.42000000001,744.03057142857153,210,null,null,"No","5889B - Perkins School for the Blind - Blind"," ","5889B"]
["5889D","Day","Perkins School for the Blind","Blind",68887.62,328.03628571428567,210,null,null,"No","5889D - Perkins School for the Blind - Blind"," ","5889D",null,{"$f":"IF(G156=366,366*F156,)","v":0}]
["5889E","Res Ed","Perkins School for the Blind","Multi-Impaired",245916.59,1171.0313809523809,210,null,null,"No","5889E - Perkins School for the Blind - Multi-Impaired"," ","5889E",null,0]
["5889G","Res Ed","Perkins School for the Blind","Severely Impaired",337123.89,1605.3518571428572,210,null,null,"No","5889G - Perkins School for the Blind - Severely Impaired"," ","5889G",null,0]
["6006D","Day","Youth Villages-Germaine Lawrence, Inc.","Day Education",null,null,216,null,null,"No","6006D - Youth Villages-Germaine Lawrence, Inc. - Day Education"," ","6006D",null,0]
["5889H","Res Ed","Perkins School for the Blind","Deaf/Blind/Multi-Impaired",300950.11,1433.0957619047617,210,null,null,"No","5889H - Perkins School for the Blind - Deaf/Blind/Multi-Impaired"," ","5889H",null,0]
["5889J","Day","Perkins School for the Blind","Deaf/Blind/Multi-Impaired",150475.04999999999,716.54785714285708,210,null,null,"No","5889J - Perkins School for the Blind - Deaf/Blind/Multi-Impaired"," ","5889J",null,0]
["5889K","Day","Perkins School for the Blind","Multi-Impaired",123149.72,586.42723809523807,210,null,null,"No","5889K - Perkins School for the Blind - Multi-Impaired"," ","5889K"]
["5889M","Day","Perkins School for the Blind","Severely Impaired",151243.59,720.20757142857144,210,null,null,"No","5889M - Perkins School for the Blind - Severely Impaired"," ","5889M"]
["5915A","Day","Protestant Guild for Human Services/DBA The Guild for Human Services","Learning Center Day",142952.91875400001,610.90990920512832,234,null,null,"No","5915A - Protestant Guild for Human Services/DBA The Guild for Human Services - Learning Center Day"," ","5915A",null,{"$f":"IF(G164=366,366*F164,)","v":0}]
["5915B","Res Ed","Protestant Guild for Human Services/DBA The Guild for Human Services","Learning Center Res",312291.446826,855.59300500273969,365,null,null,"No","5915B - Protestant Guild for Human Services/DBA The Guild for Human Services - Learning Center Res"," ","5915B",null,0]
["5940A","Day","Realizing Children's Strengths","Intensive Day",132296.67000000001,598.62746606334849,221,null,null,"No","5940A - Realizing Children's Strengths - Intensive Day"," ","5940A",null,0]
["5940B","Day","Realizing Children's Strengths","Day Ed.",95872.48,433.81212669683254,221,null,null,"No","5940B - Realizing Children's Strengths - Day Ed."," ","5940B",null,0]
["5947C","Day","Camp Sunshine Day","Reed Academy Day",64461.175999999999,298.43137037037036,216,null,null,"No","5947C - Camp Sunshine Day - Reed Academy Day"," ","5947C",null,0]
["5948A","Day","Regional Services Education Center Inc.,","RSEC Academy-Day",47736,265.2,180,null,null,"No","5948A - Regional Services Education Center Inc., - RSEC Academy-Day"," ","5948A",null,0]
["5948B","Day","Regional Services Education Center Inc.,","RSEC Academy -Summer",2849.55,189.97,15,null,null,"No","5948B - Regional Services Education Center Inc., - RSEC Academy -Summer"," ","5948B",null,0]
["5957C","Res Ed","Latham Centers, Inc.","Intensive",250622.59,686.63723287671235,365,null,null,"No","5957C - Latham Centers, Inc. - Intensive"," ","5957C"]
["5969A","Day","Riverside Community Care","Riverside Life Skills",64806.25,286.75331858407077,226,null,null,"No","5969A - Riverside Community Care - Riverside Life Skills"," ","5969A",null,{"$f":"IF(G172=366,366*F172,)","v":0}]
["5975A","Day","Riverview School","Riverview Day",50742.12,281.90066666666667,180,null,null,"No","5975A - Riverview School - Riverview Day"," ","5975A"]
["5975B","Res Ed","Riverview School","Riverview",87478.42,358.51811475409835,244,null,null,"No","5975B - Riverview School - Riverview"," ","5975B",null,{"$f":"IF(G174=366,366*F174,)","v":0}]
["5985A","Res Ed","Wayside Youth and Family Support Ntwk.","Wayside BTR",185801.21999999997,509.04443835616433,365,null,null,"No","5985A - Wayside Youth and Family Support Ntwk. - Wayside BTR"," ","5985A",null,0]
["5985C","Day","Wayside Youth and Family Support Ntwk.","Wayside Academy",59745.66,271.57118181818186,220,null,null,"No","5985C - Wayside Youth and Family Support Ntwk. - Wayside Academy"," ","5985C",null,0]
["5986C","Day","Willie Ross School for the Deaf","Day",60913.26,338.40700000000004,180,null,null,"No","5986C - Willie Ross School for the Deaf - Day"," ","5986C",null,0]
["5990A","Res","Oak Grove School ","Waterfall Canyon Academy",159520,437.04109589041099,365,null,null,"No","5990A - Oak Grove School  - Waterfall Canyon Academy"," ","5990A",null,0]
["5992D","Day","Justice Resource Institute","Anchor Academy",57101.72,288.39252525252527,198,null,null,"No","5992D - Justice Resource Institute - Anchor Academy"," ","5992D",null,0]
["5995B","Day","Youth Opportunities Upheld","Educational Prog.",41752.22,193.29731481481483,216,null,null,"No","5995B - Youth Opportunities Upheld - Educational Prog."," ","5995B",null,0]
["5995C","Res Ed","Youth Opportunities Upheld","Cottage Hill Academy",201247.3,551.36246575342466,365,null,null,"No","5995C - Youth Opportunities Upheld - Cottage Hill Academy"," ","5995C"]
["5997F","Res Ed","Justice Resource Institute","Meadowridge",213478.73,584.87323287671234,365,null,null,"No","5997F - Justice Resource Institute - Meadowridge"," ","5997F",null,{"$f":"IF(G182=366,366*F182,)","v":0}]
["6002B","Res Ed","Saint Ann's Home, Inc.","St. Ann's Residential",201877.06,553.08783561643838,365,null,null,"No","6002B - Saint Ann's Home, Inc. - St. Ann's Residential"," ","6002B",null,{"$f":"IF(G183=366,366*F183,)","v":0}]
["6002C","Day","Saint Ann's Home, Inc.","St. Ann's Day School",56373.53,313.18627777777778,180,null,null,"No","6002C - Saint Ann's Home, Inc. - St. Ann's Day School"," ","6002C",null,{"$f":"IF(G184=366,366*F184,)","v":0}]
["6002D","Summer","Saint Ann's Home, Inc.","Summer Day",9504.17,264.0047222222222,36,null,null,"No","6002D - Saint Ann's Home, Inc. - Summer Day"," ","6002D"]
["6012A","Day","Cardinal Cushing School & Training Ctr.","Braintree St. Coletta",90965.537166000009,421.13674613888895,216,null,null,"No","6012A - Cardinal Cushing School & Training Ctr. - Braintree St. Coletta"," ","6012A"]
["6052A","Day","Willow Hill School","Willow Hill School",56784.87,315.47149999999999,180,null,null,"No","6052A - Willow Hill School - Willow Hill School"," ","6052A"]
["6054A","Day","Meeting Street School ","Schwartz Center Day",73652.259999999995,333.26814479638006,221,null,null,"No","6054A - Meeting Street School  - Schwartz Center Day"," ","6054A"]
["6059A","Day","Northeast Behavioral Health","Solstice Day Program",74475.3,344.79305555555555,216,null,null,"No","6059A - Northeast Behavioral Health - Solstice Day Program"," ","6059A",null,{"$f":"IF(G189=366,366*F189,)","v":0}]
["6120A","RES Ed","Seven Hills Foundation, Inc.","Stetson School",210932.42,577.89704109589047,365,null,null,"No","6120A - Seven Hills Foundation, Inc. - Stetson School"," ","6120A",null,0]
["6121A","Res Ed","Stevens Children's Home","Stevens Home  Day Program",187428.61,513.50304109589035,365,null,null,"No","6121A - Stevens Children's Home - Stevens Home  Day Program"," ","6121A",null,0]
["6121B","Day","Stevens Children's Home","Stevens Home",63620.81,284.02147321428572,224,null,null,"No","6121B - Stevens Children's Home - Stevens Home"," ","6121B",null,0]
["6124I","Res Ed","Wediko Children's Services","Winter/Diag.",149775,410.34246575342468,365,null,null,"No","6124I - Wediko Children's Services - Winter/Diag."," ","6124I",null,0]
["6125A","Day","Summit Academy","Sch. for Alt. Learners",52010.36,262.67858585858585,198,null,null,"No","6125A - Summit Academy - Sch. for Alt. Learners"," ","6125A",null,0]
["6185A","Day","Valley West Day School","Valley West Day School",52992.51,294.40283333333332,180,null,null,"No","6185A - Valley West Day School - Valley West Day School"," ","6185A",null,0]
["6185B","Summer","Valley West Day School","Valley West Summer",6316.28,210.54266666666666,30,null,null,"No","6185B - Valley West Day School - Valley West Summer"," ","6185B",null,0]
["6245A","Day","Walker, Inc.","Walker School",94165.440000000002,435.95111111111112,216,null,null,{"$f":"IF(C197<>\"Summer\", \"No\", \"Yes\")","v":"No"},{"$f":"A197& \" - \"&C197 & \" - \"&D197","v":"6245A - Walker, Inc. - Walker School"}," ",{"$f":"TRIM(A197)","v":"6245A"},null,0]
["6245C","Res Ed","Walker, Inc.","Intensive",260773.05,714.44671232876703,365,null,null,"No","6245C - Walker, Inc. - Intensive"," ","6245C",null,0]
["6245D","Day","Walker, Inc.","Beacon High School",60738.2,306.75858585858583,198,null,null,"No","6245D - Walker, Inc. - Beacon High School"," ","6245D"]
["6252B","Day","R. F. Kennedy Action Corps","RFK Lancaster Day",71097.039999999994,329.15296296296293,216,null,null,"No","6252B - R. F. Kennedy Action Corps - RFK Lancaster Day"," ","6252B"]
["6255A","Summer","Wellspring Foundation, Inc","Arch Bridge School Summer",4275,225,19,null,null,"No","6255A - Wellspring Foundation, Inc - Arch Bridge School Summer"," ","6255A",null,{"$f":"IF(G201=366,366*F201,)","v":0}]
["6255B","Day","Wellspring Foundation, Inc","Arch Bridge School Day ",56647.08,299.72000000000003,189,null,null,"No","6255B - Wellspring Foundation, Inc - Arch Bridge School Day "," ","6255B",null,0]
["6257B","Res Ed","Whitney Academy, Inc.","Intensive",258954.86,709.46536986301362,365,null,null,"No","6257B - Whitney Academy, Inc. - Intensive"," ","6257B",null,0]
["6263A","Day","Wolf School","Wolf School",57800,350.30303030303031,165,null,null,"No","6263A - Wolf School - Wolf School"," ","6263A",null,0]
["6263B","Summer","Wolf School","Summer ",5800,290,20,null,null,"No","6263B - Wolf School - Summer "," ","6263B",null,0]
["6276C","Res Ed","Becket","Belgrade",224777.95,615.83000000000004,365,null,null,"No","6276C - Becket - Belgrade"," ","6276C",null,0]
["6276H","Res Ed","Becket","Mount Prospect Academy/Campton",259434.7,710.78000000000009,365,null,null,"No","6276H - Becket - Mount Prospect Academy/Campton"," ","6276H",null,0]
["6276I","Res Ed","Becket","Mount Prospect Academy/Rummey",186664.65,511.40999999999997,365,null,null,"No","6276I - Becket - Mount Prospect Academy/Rummey"," ","6276I",null,0]
["6276J","Res Ed","Becket","Mount Prospect Academy/Pike ",185076.9,507.06,365,null,null,"No","6276J - Becket - Mount Prospect Academy/Pike "," ","6276J",null,0]
["6276M","Res Ed","Becket","Mount Prospect Academy/ Depot (Subacute)",307289.84999999998,841.89,365,null,null,"No","6276M - Becket - Mount Prospect Academy/ Depot (Subacute)"," ","6276M",null,0]
["6276N","Res Ed","Becket","Mount Prospect Academy/Plymouth",181266.3,496.61999999999995,365,null,null,"No","6276N - Becket - Mount Prospect Academy/Plymouth"," ","6276N",null,0]
["6276P","Res Ed","Becket","Vermont School for Girls",141729.5,388.3,365,null,null,"No","6276P - Becket - Vermont School for Girls"," ","6276P",null,0]
["6276S","Res Ed","Becket","NESFG Green Meadows Subacute",295102.5,808.5,365,null,null,"No","6276S - Becket - NESFG Green Meadows Subacute"," ","6276S"]
["6276T","Res Ed","Becket","NESFG Intensive Residential",200056.5,548.1,365,null,null,"No","6276T - Becket - NESFG Intensive Residential"," ","6276T",null,{"$f":"IF(G214=366,366*F214,)","v":0}]

{"sheet":"FY20_sped-prices_combined file","index":2,"n_rows":213,"n_cols":16,"rows_kept":213,"cut":false,"hidden":true,"merged":[]}
[]
[null,"Amego",237131690,"Day","Amego School Day ","2003-06-30","05","5017B",237,{"$f":"IF(I2=365,365+1,I2)","v":237},121717.14,{"$f":"+M2*J2","v":121717.13999999998},513.57443037974679,"2019-09-01",null,{"$f":"VLOOKUP(H2,data!$A$3:$A$269,1,FALSE)","v":"5017B"}]
[null,"Amego","237131690","Res Ed","Autistic","2003-06-30","03","5017A",365,366,242151.74,242815.16942465754,663.42942465753424,null,null,{"$f":"VLOOKUP(H3,data!$A$3:$A$269,1,FALSE)","v":"5017A"}]
[null,"American School for the Deaf","060667600","Day","MA Educational/Day",null,null,"5021C",180,180,69160,69160,384.22222222222223,"2019-08-01",null,{"$f":"VLOOKUP(H4,data!$A$3:$A$269,1,FALSE)","v":"5021C"}]
[null,"American School for the Deaf","060667600","Res Ed","MA Educational/Residential","Exempt ",41090,"5021E",180,180,99797,99797,554.42777777777781,"2019-08-01",null,{"$f":"VLOOKUP(H5,data!$A$3:$A$269,1,FALSE)","v":"5021E"}]
[null,"American School for the Deaf","060667600","Res Ed","MA PACES 365","Exempt ",41090,"5021G",365,366,489267,490607.45753424655,1340.4575342465753,"2019-08-01",null,{"$f":"VLOOKUP(H6,data!$A$3:$A$269,1,FALSE)","v":"5021G"}]
[null,"Archway, Inc.","042643209","Res Ed","Archway","2003-06-30","01","5034A",365,366,176769.27,177253.56936986302,484.29936986301368,null,null,{"$f":"VLOOKUP(H7,data!$A$3:$A$269,1,FALSE)","v":"5034A"}]
[null,"Becket","020433265","Res Ed","Belgrade","Exempt ",41090,"6276C",365,366,224777.95,225393.78000000003,615.83000000000004,null,null,{"$f":"VLOOKUP(H8,data!$A$3:$A$269,1,FALSE)","v":"6276C"}]
[null,"Becket","020433265","Res Ed","Mount Prospect Academy/ Depot (Subacute)",null,null,"6276M",365,366,307289.84999999998,308131.74,841.89,"2019-11-01",null,{"$f":"VLOOKUP(H9,data!$A$3:$A$269,1,FALSE)","v":"6276M"}]
[null,"Becket","020433265","Res Ed","Mount Prospect Academy/Campton",null,null,"6276H",365,366,259434.7,260145.48000000004,710.78000000000009,"2019-11-01",null,{"$f":"VLOOKUP(H10,data!$A$3:$A$269,1,FALSE)","v":"6276H"}]
[null,"Becket","020433266","Res Ed","Mount Prospect Academy/Pike ",null,null,"6276J",365,366,185076.9,185583.96,507.06,"2019-11-01",null,{"$f":"VLOOKUP(H11,data!$A$3:$A$269,1,FALSE)","v":"6276J"}]
[null,"Becket","020433266","Res Ed","Mount Prospect Academy/Plymouth",null,null,"6276N",365,366,181266.3,181762.91999999998,496.61999999999995,"2019-11-01",null,{"$f":"VLOOKUP(H12,data!$A$3:$A$269,1,FALSE)","v":"6276N"}]
[null,"Becket","020433265","Res Ed","Mount Prospect Academy/Rummey",null,null,"6276I",365,366,186664.65,187176.06,511.40999999999997,"2019-11-01",null,{"$f":"VLOOKUP(H13,data!$A$3:$A$269,1,FALSE)","v":"6276I"}]
[null,"Becket","020433267","Res Ed","NESFG Green Meadows Subacute",null,null,"6276S ",365,366,295102.5,295911,808.5,null,null,{"$f":"VLOOKUP(H14,data!$A$3:$A$269,1,FALSE)","v":{"$error":"#N/A"}}]
[null,"Becket","020433267","Res Ed","NESFG Intensive Residential",null,null,"6276T ",365,366,200056.5,200604.6,548.1,null,null,{"$f":"VLOOKUP(H15,data!$A$3:$A$269,1,FALSE)","v":{"$error":"#N/A"}}]
[null,"Becket","020433266","Res Ed","Vermont School for Girls",null,null,"6276P",365,366,141729.5,142117.80000000002,388.3,null,null,{"$f":"VLOOKUP(H16,data!$A$3:$A$269,1,FALSE)","v":"6276P"}]
[null,"Bellefaire Jewish  Childrens Bureau",340714630,"Res Ed","Monarch School",null,null,"5121A",365,366,202056.03,202609.60816438356,553.57816438356167,null,null,{"$f":"VLOOKUP(H17,data!$A$3:$A$269,1,FALSE)","v":"5121A"}]
[null,"Bellefaire Jewish  Childrens Bureau",340714630,"Day","Monarch School",null,null,"5121B",180,180,83551.48,83551.48,464.17488888888886,null,null,{"$f":"VLOOKUP(H18,data!$A$3:$A$269,1,FALSE)","v":"5121B"}]
[null,"Beverly School for the Deaf","042103886","Day","BSD","2003-06-30","8","5134B",204,204,79865.19,79865.19,391.49602941176471,"2019-09-01",null,{"$f":"VLOOKUP(H19,data!$A$3:$A$269,1,FALSE)","v":"5134B"}]
[null,"Beverly School for the Deaf","042103886","Day","Child. Comm. Ctr.","2003-06-30","7","5134C",204,204,97695.039999999994,97695.039999999994,478.89725490196076,"2019-09-01",null,{"$f":"VLOOKUP(H20,data!$A$3:$A$269,1,FALSE)","v":"5134C"}]
[null,"Boston College Campus School","042103545","Day","Campus School","2016-05-30",1,"5157A",198,198,93171.76,93171.76,470.5644444444444,null,null,{"$f":"VLOOKUP(H21,data!$A$3:$A$269,1,FALSE)","v":"5157A"}]
[null,"Boston Higashi School","222803661","Day","Day Education","2003-06-30",1,"5154A",217,217,78736.08,78736.08,362.83907834101382,null,null,{"$f":"VLOOKUP(H22,data!$A$3:$A$269,1,FALSE)","v":"5154A"}]
[null,"Boston Higashi School","222803661","Res Ed","Residential Ed.","2003-06-30",2,"5154B",304,304,192787.48,192787.48000000004,634.16934210526324,null,null,{"$f":"VLOOKUP(H23,data!$A$3:$A$269,1,FALSE)","v":"5154B"}]
[null,"Boston Higashi School","222803661","Res Ed","Residential Ed. 365","2003-06-30","3","5154C",365,366,231463.32,232097.46608219176,634.14608219178081,null,null,{"$f":"VLOOKUP(H24,data!$A$3:$A$269,1,FALSE)","v":"5154C"}]
[null,"Brandon Residential Treatment Center","043015339","Day","Intensive Day","2003-06-30",11,"5160C",216,216,80784.039999999994,80784.039999999994,374.00018518518516,null,null,{"$f":"VLOOKUP(H25,data!$A$3:$A$269,1,FALSE)","v":"5160C"}]
[null,"Brandon Residential Treatment Center","043015339","Res Ed","Intensive Res.","2003-06-30",12,"5160D",365,366,205455.61,206018.50208219176,562.89208219178079,null,null,{"$f":"VLOOKUP(H26,data!$A$3:$A$269,1,FALSE)","v":"5160D"}]
[null,"Broccoli Hall, Inc.","043379875","Day","Corwin-Russell","2003-06-30","01","5165A",180,180,39236.949999999997,39236.949999999997,217.98305555555555,"1(FY21)",null,{"$f":"VLOOKUP(H27,data!$A$3:$A$269,1,FALSE)","v":"5165A"}]
[null,"Camp Sunshine Day","042541474","Day","Reed Academy Day","2011-06-30","2","5947C",216,216,62754.26,62754.26,290.52898148148148,"1 (FY21) ",null,{"$f":"VLOOKUP(H28,data!$A$3:$A$269,1,FALSE)","v":"5947C"}]
[null,"Cardinal Cushing School & Training Ctr.","042104871","Day","Braintree St. Coletta","2003-06-30",11,"6012A",216,216,89234.39,89234.39,413.12217592592594,"2019-11-01",null,{"$f":"VLOOKUP(H29,data!$A$3:$A$269,1,FALSE)","v":"6012A"}]
[null,"Cardinal Cushing School & Training Ctr.","042104871","Day","Day/Vocational","2003-06-30",1,"5296A",216,216,95345.67,95345.67,441.41513888888886,"2019-11-01",null,{"$f":"VLOOKUP(H30,data!$A$3:$A$269,1,FALSE)","v":"5296A"}]
[null,"Cardinal Cushing School & Training Ctr.","042104871","Res Ed","Residential","2003-06-30",9,"5296C",365,366,248977,249659.12876712327,682.12876712328762,"2019-11-01",null,{"$f":"VLOOKUP(H31,data!$A$3:$A$269,1,FALSE)","v":"5296C"}]
[null,"Center for Applied Behavioral Instruction","272283580  ","Day","Day Program","2003-06-30","1","5224A",226,226,93311.83,93311.83,412.88420353982303,null,null,{"$f":"VLOOKUP(H32,data!$A$3:$A$269,1,FALSE)","v":"5224A"}]
[null,"Center for School Crisis Inter. & Assess.","043244814","Day","Center School","2003-06-30","01","5227B",220,220,79151.039999999994,79151.039999999994,359.77745454545453,"2 (FY21) ",null,{"$f":"VLOOKUP(H33,data!$A$3:$A$269,1,FALSE)","v":"5227B"}]
[null,"Children's Study Home",42105939,"Day","Curtis Blake Day School","2003-06-30",null,"5249G",180,180,43563.03,43563.03,242.01683333333332,null,null,{"$f":"VLOOKUP(H34,data!$A$3:$A$269,1,FALSE)","v":"5249G"}]
[null,"Children's Study Home","042105939","Day","Mill Pond Day Program","2003-06-30","06","5249A",216,216,50907.67,50907.67,235.6836574074074,null,null,{"$f":"VLOOKUP(H35,data!$A$3:$A$269,1,FALSE)","v":"5249A"}]
[null,"Clarke School for the Deaf","042104008","Day","Clarke School East","2003-06-30",4,"5257D",192,192,56329.38,56329.38,293.38218749999999,"2019-08-01",null,{"$f":"VLOOKUP(H36,data!$A$3:$A$269,1,FALSE)","v":"5257D"}]
[null,"Clarke School for the Deaf","042104008","Day","Day Education","2003-06-30",2,"5257A",180,180,59990.69,59990.69000000001,333.28161111111115,"2019-08-01",null,{"$f":"VLOOKUP(H37,data!$A$3:$A$269,1,FALSE)","v":"5257A"}]
[null,"Clarke School for the Deaf","042104008","Day","Preschool","2003-06-30",3,"5257B",198,198,50968.91,50968.909999999996,257.41873737373737,"2019-10-01",null,{"$f":"VLOOKUP(H38,data!$A$3:$A$269,1,FALSE)","v":"5257B"}]
[null,"Clearway School, Inc.","042576523","Day","766 School","2003-06-30","01","5258A",180,180,49825.43,49825.43,276.80794444444444,"1(FY20)",null,{"$f":"VLOOKUP(H39,data!$A$3:$A$269,1,FALSE)","v":"5258A"}]
[null,"Clearway School, Inc.",42576523,"Summer","Summer","2003-06-30","02","5258B",24,24,5756.4,5756.4,239.85,null,null,{"$f":"VLOOKUP(H40,data!$A$3:$A$269,1,FALSE)","v":"5258B"}]
[null,"Community Therapeutic Day School","222725934","Day","Day School","2003-06-30","01","5265A",180,180,79544.5,79544.5,441.91388888888889,null,null,{"$f":"VLOOKUP(H41,data!$A$3:$A$269,1,FALSE)","v":"5265A"}]
[null,"Community Therapeutic Day School","222725934","Summer","Summer","2003-06-30","02","5265B",20,20,7077.44,7077.4399999999987,353.87199999999996,null,null,{"$f":"VLOOKUP(H42,data!$A$3:$A$269,1,FALSE)","v":"5265B"}]
[null,"COMPASS, Inc.",42539383,"Day","766 Day School","2003-06-30","01","5110C",180,180,72946.45,72946.45,405.25805555555553,null,null,{"$f":"VLOOKUP(H43,data!$A$3:$A$269,1,FALSE)","v":"5110C"}]
[null,"COMPASS, Inc.","042539383","Day","Short Term Crisis","2003-06-30",20,"5110B",180,180,30497.14,30497.14,169.42855555555556,null,null,{"$f":"VLOOKUP(H44,data!$A$3:$A$269,1,FALSE)","v":"5110B"}]
[null,"COMPASS, Inc.","042539383","Summer","Summer","2003-06-30","21","5110A",24,24,7682.63,7682.6299999999992,320.10958333333332,null,null,{"$f":"VLOOKUP(H45,data!$A$3:$A$269,1,FALSE)","v":"5110A"}]
[null,"Cotting School, Inc.",42104328,"Day","Cotting Day","2003-06-30",1,"5274A",180,180,80442.64,80442.64,446.90355555555556,"1 (FY21) ",null,{"$f":"VLOOKUP(H46,data!$A$3:$A$269,1,FALSE)","v":"5274A"}]
[null,"Cotting School, Inc.","042104328","Summer","Cotting Summer","2003-06-30",2,"5274B",25,25,7746.24,7746.24,309.84960000000001,null,null,{"$f":"VLOOKUP(H47,data!$A$3:$A$269,1,FALSE)","v":"5274B"}]
[null,"Cotting School, Inc.","042104328","Residential","Hopehouse","2003-06-30","5","5274E",180,180,97880.18,97880.179999999978,543.77877777777769,null,null,{"$f":"VLOOKUP(H48,data!$A$3:$A$269,1,FALSE)","v":"5274E"}]
[null,"Crossroads School  Children, Inc.",61660628,"Day","Crossroads School","2003-06-30","2","5272A",226,226,123452.49,123452.48999999999,546.24995575221237,"2019-09-01",null,{"$f":"VLOOKUP(H49,data!$A$3:$A$269,1,FALSE)","v":"5272A"}]
[null,"Crotched Mountain Rehabilitation","020222168","Day","Day","9",41090,"5276D",220,220,118538.2,118538.19999999998,538.80999999999995,null,null,{"$f":"VLOOKUP(H50,data!$A$3:$A$269,1,FALSE)","v":"5276D"}]
[null,"Crotched Mountain Rehabilitation","020222168","Res Ed","Residential","7",41090,"5276A",365,366,249407.04,250090.34695890412,683.30695890410959,null,null,{"$f":"VLOOKUP(H51,data!$A$3:$A$269,1,FALSE)","v":"5276A"}]
[null,"Crystal Springs, Inc.",42764196,"Res Ed","Main Program","2003-06-30","01","5297A",365,366,287285.52,288072.6036164384,787.08361643835622,"2(FY20)",null,{"$f":"VLOOKUP(H52,data!$A$3:$A$269,1,FALSE)","v":"5297A"}]
[null,"Cutchins Programs for Children & Fam.",42604427,"Day","New Directions","2003-06-30","02","5811A",218,218,77089.48,77089.48,353.62146788990822,"2019-09-01",null,{"$f":"VLOOKUP(H53,data!$A$3:$A$269,1,FALSE)","v":"5811A"}]
[null,"Devereux -Ackerman Academy","231390618","Res Ed","Residential/Treatment Services ",null,null,"5324D",365,366,127629.55,127979.22,349.67,null,null,{"$f":"VLOOKUP(H54,data!$A$3:$A$269,1,FALSE)","v":"5324D"}]
[null,"Devereux Foundation of Mass., Inc.","030284103","Day","CARES","2010-06-30","80","5530C",216,216,89901.73,89901.73,416.21171296296296,null,null,{"$f":"VLOOKUP(H55,data!$A$3:$A$269,1,FALSE)","v":"5530C"}]
[null,"Devereux Foundation of Mass., Inc.","231390618","Day","Day Program","2003-06-30","03","5324P",216,216,60507.06,60507.05999999999,280.12527777777774,null,null,{"$f":"VLOOKUP(H56,data!$A$3:$A$269,1,FALSE)","v":"5324P"}]
[null,"Devereux Foundation of Mass., Inc.","231390618","Res Ed","West Meadow","2003-06-30","01","5324B",365,366,199664.82,200211.84690410958,547.02690410958905,null,null,{"$f":"VLOOKUP(H57,data!$A$3:$A$269,1,FALSE)","v":"5324B"}]
[null,"Devereux Glenholme","231390618","Res. Ed","Glenholme","05",41090,"5324E",365,366,138715,139095.04109589042,380.04109589041099,null,null,{"$f":"VLOOKUP(H58,data!$A$3:$A$269,1,FALSE)","v":"5324E"}]
[null,"Dr. Franklin Perkins School, Inc.","042103834","Day ","Day Program","042103835","07","5887B",218,218,75529.27,75529.27,346.46454128440371,"2019-10-01",null,{"$f":"VLOOKUP(H59,data!$A$3:$A$269,1,FALSE)","v":"5887B"}]
[null,"Dr. Franklin Perkins School, Inc.",42103834,"Res Ed","Intensive",42103835,"01","5887A",365,366,222478.2,223087.72931506849,609.52931506849313,"2019-10-01",null,{"$f":"VLOOKUP(H60,data!$A$3:$A$269,1,FALSE)","v":"5887A"}]
[null,"Easter Seals of New Hampshire","020272825","Res Ed","DVPMTL Disabled MSchool - Lancaster - Int.","1a",41152,"5338J",365,366,357375.51,358354.62098630134,979.11098630136985,null,null,{"$f":"VLOOKUP(H61,data!$A$3:$A$269,1,FALSE)","v":"5338J"}]
[null,"Easter Seals of New Hampshire","020272825","Res Ed","DVPMTL Disabled MSchool - Lancaster - Regular","1a",41152,"5338I",365,366,223577.67,224190.21156164384,612.54156164383562,null,null,{"$f":"VLOOKUP(H62,data!$A$3:$A$269,1,FALSE)","v":"5338I"}]
[null,"Easter Seals of New Hampshire","020272825","Res Ed","Jolicouer - House III Males Residential - Regular","1c",41152,"5338G",365,366,201489.75,202041.77671232875,552.02671232876708,null,null,{"$f":"VLOOKUP(H63,data!$A$3:$A$269,1,FALSE)","v":"5338G"}]
[null,"Easter Seals of New Hampshire","020272825","Res Ed","Jolicouer - Krol Residential - Regular","1f",41152,"5338C",365,366,201489.75,202042.97999999998,552.03,null,null,{"$f":"VLOOKUP(H64,data!$A$3:$A$269,1,FALSE)","v":"5338C"}]
[null,"Easter Seals of New Hampshire","020272825","Res Ed","Jolicouer - Zachery Road Residential - Intensive","1d",41152,"5338F",365,366,353627.85,354596.69342465751,968.84342465753423,null,null,{"$f":"VLOOKUP(H65,data!$A$3:$A$269,1,FALSE)","v":"5338F"}]
[null,"Easter Seals of New Hampshire","020272825","Res Ed","Jolicouer - Zachery Road Residential - Regular","1d",41152,"5338E",365,{"$f":"IF(I66=365,365+1,I66)","v":366},219830.01,{"$f":"+M66*J66","v":220432.28400000001},602.274,null,null,{"$f":"VLOOKUP(H66,data!$A$3:$A$269,1,FALSE)","v":"5338E"}]
[null,"Evergreen Center, Inc.","042753469","Res Ed","BDU","2003-06-30","08","5385A",365,366,247815.73,248494.67720547947,678.94720547945212,null,null,{"$f":"VLOOKUP(H67,data!$A$3:$A$269,1,FALSE)","v":"5385A"}]
[null,"Evergreen Center, Inc.",42753469,"Res Ed","Multi H.","2003-06-30","01","5385B",365,366,224016.28,224630.02323287673,613.74323287671234,null,null,{"$f":"VLOOKUP(H68,data!$A$3:$A$269,1,FALSE)","v":"5385B"}]
[null,"F. L. Chamberlain School, Inc.","042593666","Res Ed","365 Day Residential","2004-08-31","02","5238F",365,366,172769.55,173242.89123287669,473.3412328767123,"2019-08-01",null,{"$f":"VLOOKUP(H69,data!$A$3:$A$269,1,FALSE)","v":"5238F"}]
[null,"F. L. Chamberlain School, Inc.","042593666","Day","Day","2004-08-31","04","5238E",216,216,102629.03,102629.03,475.13439814814814,"2019-08-01",null,{"$f":"VLOOKUP(H70,data!$A$3:$A$269,1,FALSE)","v":"5238E"}]
[null,"Fall River Deaconess, Inc.",null,"Day","Day Program",null,null,"5303B",216,216,59554.140552181561,59554.140552181561,275.71361366750722,"1 (FY21) ",null,{"$f":"VLOOKUP(H71,data!$A$3:$A$269,1,FALSE)","v":{"$error":"#N/A"}}]
[null,"Fall River Deaconess, Inc.",42103766,"Res Ed","Residential Program","2003-06-30","01","5303A",365,366,168958.87,169421.77101369863,462.90101369863015,"1 (FY21) ",null,{"$f":"VLOOKUP(H72,data!$A$3:$A$269,1,FALSE)","v":"5303A"}]
[null,"Franciscan Children's Hospital","042156082","Day","Kennedy Day","2004-09-30",1,"5582A",200,200,90624.38,90624.38,453.12190000000004,"2(FY21)",null,{"$f":"VLOOKUP(H73,data!$A$3:$A$269,1,FALSE)","v":"5582A"}]
[null,"Greenwood School","042642601","Day","Greenwood School","Exempt",41089,"5451B",152,152,59426.239999999998,59426.239999999998,390.96210526315787,"2019-10-01",null,{"$f":"VLOOKUP(H74,data!$A$3:$A$269,1,FALSE)","v":"5451B"}]
[null,"Greenwood School","042642602","Res Ed","Greenwood School","Exempt",41090,"5451A",206,206,78826.240000000005,78826.240000000005,382.6516504854369,"2019-10-01",null,{"$f":"VLOOKUP(H75,data!$A$3:$A$269,1,FALSE)","v":"5451A"}]
[null,"Groden Center",50369378,"Day","Intensive Day Program fro Res students                ( 33 3/4 hours ) ",null,null,"5454B",219,219,82385,82385,376.18721461187215,null,null,{"$f":"VLOOKUP(H76,data!$A$3:$A$269,1,FALSE)","v":"5454B"}]
[null,"Groden Center","050369378","Day","Intensive Day Program Non Res Students             (30 hours )","Exempt",41090,"5454E",219,219,73231,73231,334.38812785388126,null,null,{"$f":"VLOOKUP(H77,data!$A$3:$A$269,1,FALSE)","v":"5454E"}]
[null,"Groden Center",50369378,"Res Ed","Resid. Inten.",null,null,"5454C",365,366,243180,243846.24657534249,666.2465753424658,null,null,{"$f":"VLOOKUP(H78,data!$A$3:$A$269,1,FALSE)","v":"5454C"}]
[null,"Grove","060775142","Res","Grove School",null,null,"5472A",289,289,144000,144000,498.26989619377161,null,null,{"$f":"VLOOKUP(H79,data!$A$3:$A$269,1,FALSE)","v":"5472A"}]
[null,"Hillcrest Educational Centers, Inc.","042848510","Res Ed","Autism Spectrum Disorders","2003-06-30","10","5088G",365,366,363272.62,364267.88745205477,995.26745205479449,null,null,{"$f":"VLOOKUP(H80,data!$A$3:$A$269,1,FALSE)","v":"5088G"}]
[null,"Hillcrest Educational Centers, Inc.","042848510","Res Ed","Hillcrest","2003-06-30","01","5088D",365,366,211580.96,212160.63386301367,579.67386301369856,null,null,{"$f":"VLOOKUP(H81,data!$A$3:$A$269,1,FALSE)","v":"5088D"}]
[null,"Hillcrest Educational Centers, Inc.","042848510","Day","Housatonic Academy","2003-06-30","06-1","5088F ",216,216,58101.120000000003,58101.120000000003,268.98666666666668,null,null,{"$f":"VLOOKUP(H82,data!$A$3:$A$269,1,FALSE)","v":{"$error":"#N/A"}}]
[null,"Hillcrest Educational Centers, Inc.","042848510","Res Ed","Intensive Tx Unit","2003-06-30","05","5088E",365,366,342617.95,343556.62931506854,938.67931506849322,null,null,{"$f":"VLOOKUP(H83,data!$A$3:$A$269,1,FALSE)","v":"5088E"}]
[null,"HMS School for Children with Cerebral Palsy",231352327,"Day","Extended school Year",null,null,"5495B",27,27,13770,13770,510,null,null,{"$f":"VLOOKUP(H84,data!$A$3:$A$269,1,FALSE)","v":"5495B"}]
[null,"HMS School for Children with Cerebral Palsy",231352327,"Res Ed","Residential Program 7 days",null,null,"5495A",260,260,163300,163300,628.07692307692309,null,null,{"$f":"VLOOKUP(H85,data!$A$3:$A$269,1,FALSE)","v":"5495A"}]
[null,"Home for Little Wanderers","042197449","Day","Clifford Day",null,null,"5785E",180,180,83123.34,83123.34,461.79633333333334,"2019-11-01",null,{"$f":"VLOOKUP(H86,data!$A$3:$A$269,1,FALSE)","v":"5785E"}]
[null,"Home for Little Wanderers","042197449","Res Ed","Clifford Res",null,null,"5785F",365,366,224365.54,224980.24010958904,614.70010958904106,"2019-11-01",null,{"$f":"VLOOKUP(H87,data!$A$3:$A$269,1,FALSE)","v":"5785F"}]
[null,"Home for Little Wanderers",42104764,"Day","Southeast Campus Day","2003-06-30",46,"5095B",216,216,73059.66,73059.66,338.23916666666668,"1 (FY21) ",null,{"$f":"VLOOKUP(H88,data!$A$3:$A$269,1,FALSE)","v":"5095B"}]
[null,"Home for Little Wanderers","042104764","Res Ed","Southeast Campus Res.","2003-06-30",45,"5095A",365,366,219005.35,219605.36465753426,600.01465753424657,"1 (FY21) ",null,{"$f":"VLOOKUP(H89,data!$A$3:$A$269,1,FALSE)","v":"5095A"}]
[null,"Hopeful Journeys Education Center, Inc.",800457637,"Day","Hopeful Journeys ","2011-06-30","1","5415A",216,216,120426.37,120426.37,557.5294907407407,null,null,{"$f":"VLOOKUP(H90,data!$A$3:$A$269,1,FALSE)","v":"5415A"}]
[null,"Horace Mann","042300014","Day","Darnell School","2011-06-30","25.0","5488A",221,221,95847.31,95847.31,433.69823529411764,null,null,{"$f":"VLOOKUP(H91,data!$A$3:$A$269,1,FALSE)","v":"5488A"}]
[null,"Italian Home for Children, Inc.","042103799","Day","Italian Home Day","2003-06-30","03","5534B",220,220,85303.78,85303.78,387.74445454545452,null,null,{"$f":"VLOOKUP(H92,data!$A$3:$A$269,1,FALSE)","v":"5534B"}]
[null,"Italian Home for Children, Inc.",42103799,"Res Ed","Italian Home Res","2003-06-30","04","5534A",365,366,195840.95,196377.50054794521,536.55054794520549,null,null,{"$f":"VLOOKUP(H93,data!$A$3:$A$269,1,FALSE)","v":"5534A"}]
[null,"James Farr Academy",42502446,"Day","Farr Academy","2003-06-30",1,"5381A",180,180,90693.97,90693.97,503.85538888888891,null,null,{"$f":"VLOOKUP(H94,data!$A$3:$A$269,1,FALSE)","v":"5381A"}]
[null,"James Farr Academy",42502446,"Summer","Farr Academy Summer","2003-06-30",4,"5381C",25,25,8306.25,8306.25,332.25,null,null,{"$f":"VLOOKUP(H95,data!$A$3:$A$269,1,FALSE)","v":"5381C"}]
[null,"Judge Baker Children's Center, Inc.","042103860","Day","Manville","2003-06-30","1","5097A",180,180,93565.92,93565.92,519.81066666666663,null,null,{"$f":"VLOOKUP(H96,data!$A$3:$A$269,1,FALSE)","v":"5097A"}]
[null,"Judge Baker Children's Center, Inc.",42103860,"Summer","Manville-Summer","2003-06-30",2,"5097B",20,20,6488.8,6488.8,324.44,"1 (FY21) ",null,{"$f":"VLOOKUP(H97,data!$A$3:$A$269,1,FALSE)","v":"5097B"}]
[null,"Judge Rotenberg Educational Center",42489805,"Res Ed","Judge Rotenberg","2003-06-30","01","5120A",365,366,270556.06,271297.30947945203,741.24947945205474,null,null,{"$f":"VLOOKUP(H98,data!$A$3:$A$269,1,FALSE)","v":"5120A"}]
[null,"Justice Resource Institute","042737184","Day"," Granite Day Ed","2003-06-30","16","5695A",202,202,66368.88,66368.88,328.55881188118815,null,null,{"$f":"VLOOKUP(H99,data!$A$3:$A$269,1,FALSE)","v":"5695A"}]
[null,"Justice Resource Institute","042526357","Day","Anchor Academy","2003-06-30","79","5992D",198,198,55589.68,55589.68,280.75595959595961,null,null,{"$f":"VLOOKUP(H100,data!$A$3:$A$269,1,FALSE)","v":"5992D"}]
[null,"Justice Resource Institute","042526357","Day","Bay Cove","2003-06-30",24,"5112B",220,220,77960.31,77960.31,354.36504545454545,null,null,{"$f":"VLOOKUP(H101,data!$A$3:$A$269,1,FALSE)","v":"5112B"}]
[null,"Justice Resource Institute","042526357","Res Ed","Berkshire Meadows","2003-06-30","02","5127C",365,366,230886.18,231518.74487671233,632.56487671232878,null,null,{"$f":"VLOOKUP(H102,data!$A$3:$A$269,1,FALSE)","v":"5127C"}]
[null,"Justice Resource Institute","042526357","Res Ed","Meadowridge","2003-06-30",13,"5997F",365,366,207825.87,208395.25594520546,569.3859452054794,null,null,{"$f":"VLOOKUP(H103,data!$A$3:$A$269,1,FALSE)","v":"5997F"}]
[null,"Justice Resource Institute","042526357","Day","Victor School","2003-06-30",11,"5127D",216,216,57420.25,57420.250000000007,265.83449074074076,null,null,{"$f":"VLOOKUP(H104,data!$A$3:$A$269,1,FALSE)","v":"5127D"}]
[null,"Kennedy Donovan Center",42519028,"Day","Developmental Day","2003-06-30","01","5579A",235,235,98572.68,98572.68,419.4582127659574,"1 (FY21) ",null,{"$f":"VLOOKUP(H105,data!$A$3:$A$269,1,FALSE)","v":"5579A"}]
[null,"Landmark Foundation","042429311","Day","Landmark Day","2003-06-30","01","5607A",180,180,56071.1,56071.100000000006,311.50611111111112,null,null,{"$f":"VLOOKUP(H106,data!$A$3:$A$269,1,FALSE)","v":"5607A"}]
[null,"Landmark Foundation",42429311,"Res Ed","Landmark Residential","2003-06-30","02","5607B",240,240,74547.34,74547.34,310.61391666666663,null,null,{"$f":"VLOOKUP(H107,data!$A$3:$A$269,1,FALSE)","v":"5607B"}]
[null,"Latham Centers, Inc.",42467497,"Res Ed","Intensive","2003-06-30",5,"5957C",365,366,243986.17,244654.62526027398,668.45526027397261,null,null,{"$f":"VLOOKUP(H108,data!$A$3:$A$269,1,FALSE)","v":"5957C"}]
[null,"League School of Boston",46139988,"Day","Day Ed","2003-06-30",1,"5614A",216,216,103280.82,103280.82,478.1519444444445,"2019-08-01",null,{"$f":"VLOOKUP(H109,data!$A$3:$A$269,1,FALSE)","v":"5614A"}]
[null,"League School of Boston","046139988","Res Ed","Fine House","2003-06-30","2","5614B",365,366,220507.21,221111.33934246577,604.12934246575344,"2019-08-01",null,{"$f":"VLOOKUP(H110,data!$A$3:$A$269,1,FALSE)","v":"5614B"}]
[null,"Learning Ctr. for the Deaf",237064431,"Day","Day","2003-06-30",1,"5617G",198,198,61811,61811,312.17676767676767,null,null,{"$f":"VLOOKUP(H111,data!$A$3:$A$269,1,FALSE)","v":"5617G"}]
[null,"Learning Ctr. for the Deaf","237064431","Day","Intensive Day","2003-06-30",2,"5617H",198,198,87221.1,87221.1,440.51060606060611,null,null,{"$f":"VLOOKUP(H112,data!$A$3:$A$269,1,FALSE)","v":"5617H"}]
[null,"Learning Ctr. for the Deaf","237064431","Res Ed","Residential","2003-06-30",3,"5617I",198,198,113135.17,113135.16999999998,571.38974747474742,null,null,{"$f":"VLOOKUP(H113,data!$A$3:$A$269,1,FALSE)","v":"5617I"}]
[null,"Learning Ctr. for the Deaf","237064431","Res Ed","Walden","2003-06-30","4","5617B",365,366,342737.69,343676.69736986299,939.00736986301365,null,null,{"$f":"VLOOKUP(H114,data!$A$3:$A$269,1,FALSE)","v":"5617B"}]
[null,"Learning Skills Academy, Inc.",222580920,"Day","Learning Skills Academy","Exempt",41090,"5625A",180,180,49856.4,49856.4,276.98,null,null,{"$f":"VLOOKUP(H115,data!$A$3:$A$269,1,FALSE)","v":"5625A"}]
[null,"Learning Skills Academy, Inc.",222580920,"Day","Summer","Exempt",41090,"5625B",16,16,2176.64,2176.64,136.04,null,null,{"$f":"VLOOKUP(H116,data!$A$3:$A$269,1,FALSE)","v":"5625B"}]
[null,"Lifespan School Solutions/Bradley Schools",464910847,"Day"," Intensive Rate","Exempt ",41182,"5341E",215,215,64500,64500,300,null,null,{"$f":"VLOOKUP(H117,data!$A$3:$A$269,1,FALSE)","v":"5341E"}]
[null,"Lifespan School Solutions/Bradley Schools",464910847,"Day"," Intensive Rate","Exempt ",41182,"5341D",215,215,64500,64500,300,null,null,{"$f":"VLOOKUP(H118,data!$A$3:$A$269,1,FALSE)","v":"5341D"}]
[null,"Lifespan School Solutions/Bradley Schools",464910847,"Day","Bradley School North, Intensive",null,null,"5341S",215,215,64500,64500,300,null,null,{"$f":"VLOOKUP(H119,data!$A$3:$A$269,1,FALSE)","v":"5341S"}]
[null,"Lifespan School Solutions/Bradley Schools",464910847,"Day","Bradley School North, Standard",null,null,"5341T",215,215,54395,54395,253,null,null,{"$f":"VLOOKUP(H120,data!$A$3:$A$269,1,FALSE)","v":"5341T"}]
[null,"Lifespan School Solutions/Bradley Schools",464910847,"Day","Clinical Intensive",null,null,"5341N",215,215,71810,71810,334,null,null,{"$f":"VLOOKUP(H121,data!$A$3:$A$269,1,FALSE)","v":"5341N"}]
[null,"Lifespan School Solutions/Bradley Schools",464910847,"Day","Partnership Standard Rate",null,null,"5341P",215,215,46010,46010,214,null,null,{"$f":"VLOOKUP(H122,data!$A$3:$A$269,1,FALSE)","v":"5341P"}]
[null,"Lifespan School Solutions/Bradley Schools",464910847,"Day","Standard Rate","Exempt ",41182,"5341B ",215,215,54395,54395,253,null,null,{"$f":"VLOOKUP(H123,data!$A$3:$A$269,1,FALSE)","v":"5341B "}]
[null,"Lifespan School Solutions/Bradley Schools",464910847,"Day","Standard Rate","Exempt ",41182,"5341J",215,215,54395,54395,253,null,null,{"$f":"VLOOKUP(H124,data!$A$3:$A$269,1,FALSE)","v":"5341J"}]
[null,"Lighthouse School",42939326,"Day","Comp. Services Prog.","2003-06-30",2,"5498B",180,180,87317.41,87317.41,485.09672222222224,null,null,{"$f":"VLOOKUP(H125,data!$A$3:$A$269,1,FALSE)","v":"5498B"}]
[null,"Little People's School",237068067,"Day","Learning Prep School","2003-06-30","01","5643A",180,180,55726.46,55726.46,309.59144444444445,null,null,{"$f":"VLOOKUP(H126,data!$A$3:$A$269,1,FALSE)","v":"5643A"}]
[null,"MAB Community Services","042109859","Res Ed","IVY Street School","2003-06-30",4,"5685B",365,366,245470.13,246142.65090410961,672.52090410958908,"2019-08-01",null,{"$f":"VLOOKUP(H127,data!$A$3:$A$269,1,FALSE)","v":"5685B"}]
[null,"MAB Community Services","042109859","Day","IVY Street School Day Program","2014-06-30","10","5685C",241,241,113321.60000000001,113321.60000000001,470.21410788381746,"2019-08-01",null,{"$f":"VLOOKUP(H128,data!$A$3:$A$269,1,FALSE)","v":"5685C"}]
[null,"Margaret Gifford School","042381515","Day","Gifford School","2003-06-30",1,"5440A",180,180,64152.44,64152.44000000001,356.40244444444448,null,null,{"$f":"VLOOKUP(H129,data!$A$3:$A$269,1,FALSE)","v":"5440A"}]
[null,"Margaret Gifford School","042381515","Summer","Gifford Summer","2003-06-30",2,"5440B",20,{"$f":"IF(I130=365,365+1,I130)","v":20},5925.76,{"$f":"+M130*J130","v":5925.76},296.28800000000001,null,null,{"$f":"VLOOKUP(H130,data!$A$3:$A$269,1,FALSE)","v":"5440B"}]
[null,"Mass. Found. for Learning Disabilities","043099610","Day","White Oak School","2003-06-30","01","5049A",180,180,47779.82,47779.82,265.44344444444442,null,null,{"$f":"VLOOKUP(H131,data!$A$3:$A$269,1,FALSE)","v":"5049A"}]
[null,"May Institute","042197449","Day"," Brockton Rehabilitative D","2003-06-30",19,"5706G",235,235,119587.74,119587.74,508.88400000000001,"2(FY21)",null,{"$f":"VLOOKUP(H132,data!$A$3:$A$269,1,FALSE)","v":"5706G"}]
[null,"May Institute","042197449","Res Ed","Brockton Rehabilitative R","2003-06-30",20,"5706H",365,366,259524.37,260235.39567123287,711.02567123287668,"2(FY21)",null,{"$f":"VLOOKUP(H133,data!$A$3:$A$269,1,FALSE)","v":"5706H"}]
[null,"May Institute","042197449","Day","Randolph Day","2003-06-30","5","5706E",235,235,119064.3,119064.3,506.65659574468089,null,null,{"$f":"VLOOKUP(H134,data!$A$3:$A$269,1,FALSE)","v":"5706E"}]
[null,"May Institute","042197449","Res Ed","Randolph Res.","2003-06-30","3","5706B",365,366,247577.39,248255.6842191781,678.29421917808224,null,null,{"$f":"VLOOKUP(H135,data!$A$3:$A$269,1,FALSE)","v":"5706B"}]
[null,"May Institute","042197449","Day","West Springfield","2003-06-30","17","5706N",222,222,121507.7,121507.69999999998,547.33198198198193,null,null,{"$f":"VLOOKUP(H136,data!$A$3:$A$269,1,FALSE)","v":"5706N"}]
[null,"McAuley Nazareth Home for Boys","042432430","Res Ed","McAuley Nazareth","2003-06-30","01","5709B",365,366,153107.82,153527.29347945206,419.47347945205479,null,null,{"$f":"VLOOKUP(H137,data!$A$3:$A$269,1,FALSE)","v":"5709B"}]
[null,"McAuley Nazareth Home for Boys","042432430","Day","Nazareth Day","2003-06-30","03","5709A",216,216,35055.1,35055.1,162.29212962962961,null,null,{"$f":"VLOOKUP(H138,data!$A$3:$A$269,1,FALSE)","v":"5709A"}]
[null,"McLean Hospital, Inc.","043230035","Day","Arlington-Academy","2004-09-30","01Mc","5036A",198,198,72868.899999999994,72868.899999999994,368.02474747474747,null,null,{"$f":"VLOOKUP(H139,data!$A$3:$A$269,1,FALSE)","v":"5036A"}]
[null,"McLean Hospital, Inc.","043230035","Day","CNS","2004-09-30","02Mc","5036I",216,216,105844.09,105844.09,490.01893518518517,null,null,{"$f":"VLOOKUP(H140,data!$A$3:$A$269,1,FALSE)","v":"5036I"}]
[null,"Meeting Street School","050269232","Day","Basic","Exempt",41152,"5730A",220,220,71443,71443,324.7409090909091,null,null,{"$f":"VLOOKUP(H141,data!$A$3:$A$269,1,FALSE)","v":"5730A"}]
[null,"Meeting Street School","050269233","Day","Standard rate with 1 to 1 ",null,null,"5730C",220,220,128192,128192.00000000001,582.69090909090914,null,null,{"$f":"VLOOKUP(H142,data!$A$3:$A$269,1,FALSE)","v":"5730C"}]
[null,"Meeting Street School ","042296947","Day","Schwartz Center Day","2003-06-30","03","6054A",221,221,72250.600000000006,72250.600000000006,326.92579185520367,"2019-09-01",null,{"$f":"VLOOKUP(H143,data!$A$3:$A$269,1,FALSE)","v":"6054A"}]
[null,"Melmark Home, Inc.",236399542,"Day","Melmark Day","2003-06-30","04","5710C",237,237,116888.65,116888.65,493.20105485232062,null,null,{"$f":"VLOOKUP(H144,data!$A$3:$A$269,1,FALSE)","v":"5710C"}]
[null,"Melmark Home, Inc.","236399542","Res Ed","Melmark N.E.","2003-06-30","01","5710B",365,366,275604.75,276359.83150684932,755.08150684931502,null,null,{"$f":"VLOOKUP(H145,data!$A$3:$A$269,1,FALSE)","v":"5710B"}]
[null,"Merrimac Heights Academy ",364760914,"Day","Merrimac Heights Academy Day Program","2003-06-30",null,"5734A",180,180,86934.55,86934.55,482.96972222222223,"2019-10-01",null,{"$f":"VLOOKUP(H146,data!$A$3:$A$269,1,FALSE)","v":"5734A"}]
[null,"Milestones, Inc.","043494340","Day","Milestones Day School","2005-12-31","5","5360A",216,216,97315.96,97315.96,450.53685185185191,"1(FY21)",null,{"$f":"VLOOKUP(H147,data!$A$3:$A$269,1,FALSE)","v":"5360A"}]
[null,"N. E. Adolescent Research Institute","042883771","Day","N.E.A.R.I.","2003-06-30",1,"5760A",220,220,76645.179999999993,76645.179999999993,348.38718181818177,"2(FY20)",null,{"$f":"VLOOKUP(H148,data!$A$3:$A$269,1,FALSE)","v":"5760A"}]
[null,"Nashoba Learning Group, Inc.","010672424","Day","Nashoba Learning ","2003-06-30","03","5752A",216,216,111239.18,111239.18000000001,514.99620370370371,null,null,{"$f":"VLOOKUP(H149,data!$A$3:$A$269,1,FALSE)","v":"5752A"}]
[null,"New England Academy",161748440,"Day","NE Academy","2007-12-31","01","5788A",198,198,64999.21,64999.21,328.27883838383838,null,null,{"$f":"VLOOKUP(H150,data!$A$3:$A$269,1,FALSE)","v":"5788A"}]
[null,"New England Center for Children","042708762","Day","Intensive Instruction","2003-06-30",13,"5343D",226,226,122098.57,122098.57,540.25915929203541,null,null,{"$f":"VLOOKUP(H151,data!$A$3:$A$269,1,FALSE)","v":"5343D"}]
[null,"New England Center for Children","042708762","Res Ed","Intermediate","2003-06-30","19","5343E",365,366,327676.61,328574.35413698631,897.74413698630133,null,null,{"$f":"VLOOKUP(H152,data!$A$3:$A$269,1,FALSE)","v":"5343E"}]
[null,"New England Center for Children","042708762","Res Ed","N.E.C.C. Residen","2003-06-30","2","5343B",365,366,243428.19,244095.11654794519,666.92654794520547,null,null,{"$f":"VLOOKUP(H153,data!$A$3:$A$269,1,FALSE)","v":"5343B"}]
[null,"New England Center for Children","042708762","Res Ed","N.E.C.C. Severe","2003-06-30","03","5343C",365,366,354244.05,355214.58164383558,970.53164383561636,null,null,{"$f":"VLOOKUP(H154,data!$A$3:$A$269,1,FALSE)","v":"5343C"}]
[null,"New England Pediatric Nursing Home",42912578,"Day","Pediatric","2004-09-30","02","5113A",251,251,62751.25,62751.25,250.00498007968127,null,null,{"$f":"VLOOKUP(H155,data!$A$3:$A$269,1,FALSE)","v":"5113A"}]
[null,"Northeast Behavioral Health",42777145,"Day","Solstice Day Program","2003-06-30",22,"6059A",216,216,72503.210000000006,72503.210000000006,335.6630092592593,"2 (FY21) ",null,{"$f":"VLOOKUP(H156,data!$A$3:$A$269,1,FALSE)","v":"6059A"}]
[null,"Oak Grove School ",null,"Res","Waterfall Canyon",null,null,"5990A",365,366,159520,159957.04109589042,437.04109589041099,"2019-11-01",null,{"$f":"VLOOKUP(H157,data!$A$3:$A$269,1,FALSE)","v":"5990A"}]
[null,"Pathways",null,"Day","Pathways Strategic Teaching Center",null,null,"5885A",224,224,90000,90000,401.78571428571428,null,null,{"$f":"VLOOKUP(H158,data!$A$3:$A$269,1,FALSE)","v":"5885A"}]
[null,"Perkins School for the Blind",42103616,"Day","Blind","2003-06-30",1,"5889D",210,210,67063.490000000005,67063.490000000005,319.3499523809524,"4(FY21)",null,{"$f":"VLOOKUP(H159,data!$A$3:$A$269,1,FALSE)","v":"5889D"}]
[null,"Perkins School for the Blind","042103616","Res Ed","Blind","2003-06-30",2,"5889B",210,210,152109.04999999999,152109.04999999999,724.32880952380947,"4(FY21)",null,{"$f":"VLOOKUP(H160,data!$A$3:$A$269,1,FALSE)","v":"5889B"}]
[null,"Perkins School for the Blind","042103616","Day","Deaf/Blind/Multi-Impaired","2003-06-30",5,"5889J",210,210,146490.51,146490.51,697.57385714285715,"4(FY21)",null,{"$f":"VLOOKUP(H161,data!$A$3:$A$269,1,FALSE)","v":"5889J"}]
[null,"Perkins School for the Blind","042103616","Res Ed","Deaf/Blind/Multi-Impaired","2003-06-30",6,"5889H",210,210,292981.03000000003,292981.03000000003,1395.1477619047621,"4(FY21)",null,{"$f":"VLOOKUP(H162,data!$A$3:$A$269,1,FALSE)","v":"5889H"}]
[null,"Perkins School for the Blind","042103616","Day","Multi-Impaired","2003-06-30",3,"5889K",210,210,119888.75,119888.75,570.89880952380952,"4(FY21)",null,{"$f":"VLOOKUP(H163,data!$A$3:$A$269,1,FALSE)","v":"5889K"}]
[null,"Perkins School for the Blind","042103616","Res Ed","Multi-Impaired","2003-06-30",4,"5889E",210,210,239404.78,239404.78,1140.0227619047619,"4(FY21)",null,{"$f":"VLOOKUP(H164,data!$A$3:$A$269,1,FALSE)","v":"5889E"}]
[null,"Perkins School for the Blind","042103616","Day","Severely Impaired","2003-06-30",7,"5889M",210,210,147238.70000000001,147238.70000000001,701.13666666666677,"4(FY21)",null,{"$f":"VLOOKUP(H165,data!$A$3:$A$269,1,FALSE)","v":"5889M"}]
[null,"Perkins School for the Blind","042103616","Res Ed","Severely Impaired","2003-06-30",8,"5889G",210,210,328196.93,328196.93,1562.8425238095238,"4(FY21)",null,{"$f":"VLOOKUP(H166,data!$A$3:$A$269,1,FALSE)","v":"5889G"}]
[null,"Professional Ctr. for Handicapped Child.",42800853,"Day","Day Program","2003-06-30","01","5253A",198,198,88762.2,88762.2,448.29393939393935,null,null,{"$f":"VLOOKUP(H167,data!$A$3:$A$269,1,FALSE)","v":"5253A"}]
[null,"Protestant Guild for Human Services/DBA The Guild for Human Services","042104849","Day","Learning Center Day","2003-06-30",1,"5915A",234,234,140232.41,140232.41,599.28380341880347,"2019-10-01",null,{"$f":"VLOOKUP(H168,data!$A$3:$A$269,1,FALSE)","v":"5915A"}]
[null,"Protestant Guild for Human Services/DBA The Guild for Human Services","042104849","Res Ed","Learning Center Res","2003-06-30",2,"5915B",365,366,306348.28999999998,307187.60038356163,839.31038356164379,"2019-10-01",null,{"$f":"VLOOKUP(H169,data!$A$3:$A$269,1,FALSE)","v":"5915B"}]
[null,"R. F. Kennedy Action Corps",42457298,"Day","Exp. With Travel","2003-06-30",42,"5365A",216,216,65609.02,65609.02,303.74546296296296,"1 (FY21) ",null,{"$f":"VLOOKUP(H170,data!$A$3:$A$269,1,FALSE)","v":"5365A"}]
[null,"R. F. Kennedy Action Corps","042457298","Day","RFK Lancaster Day","2003-06-30","17","6252B",216,216,69214.41,69214.41,320.43708333333336,"1   ( 10/1)",null,{"$f":"VLOOKUP(H171,data!$A$3:$A$269,1,FALSE)","v":"6252B"}]
[null,"R. F. Kennedy Action Corps","042457298","Res Ed","RFK Lancaster Program","2003-06-30","01","6252A",365,366,195754.6,196290.91397260278,536.3139726027398,null,null,{"$f":"VLOOKUP(H172,data!$A$3:$A$269,1,FALSE)","v":"6252A"}]
[null,"Realizing Children's Strengths",208511604,"Day","Day Ed.","2008-06-30","02","5940B",221,221,93333.8,93333.8,422.32488687782808,null,null,{"$f":"VLOOKUP(H173,data!$A$3:$A$269,1,FALSE)","v":"5940B"}]
[null,"Realizing Children's Strengths",208511604,"Day","Intensive Day","2008-06-30","01","5940A",221,221,128793.49,128793.49,582.77597285067873,null,null,{"$f":"VLOOKUP(H174,data!$A$3:$A$269,1,FALSE)","v":"5940A"}]
[null,"Regional Services Education Center Inc.,","020354301","Day","RSEC Academy -Summer",null,null,"5948B",15,15,2849.55,2849.55,189.97,null,null,{"$f":"VLOOKUP(H175,data!$A$3:$A$269,1,FALSE)","v":"5948B"}]
[null,"Regional Services Education Center Inc.,","020354301","Day","RSEC Academy-Day",null,null,"5948A",180,180,47736,47736,265.2,null,null,{"$f":"VLOOKUP(H176,data!$A$3:$A$269,1,FALSE)","v":"5948A"}]
[null,"Riverside Community Care","043097170","Day","Riverside Life Skills","2003-06-30","16","5969A",226,226,63090.2,63090.2,279.16017699115042,"1 (FY21) ",null,{"$f":"VLOOKUP(H177,data!$A$3:$A$269,1,FALSE)","v":"5969A"}]
[null,"Riverview School",42240919,"Res Ed","Riverview","2003-06-30",1,"5975B",244,244,85162.01,85162.01,349.02463114754096,null,null,{"$f":"VLOOKUP(H178,data!$A$3:$A$269,1,FALSE)","v":"5975B"}]
[null,"Riverview School","042240919","Day","Riverview Day","2003-06-30","2","5975A",180,180,49398.48,49398.48,274.43600000000004,null,null,{"$f":"VLOOKUP(H179,data!$A$3:$A$269,1,FALSE)","v":"5975A"}]
[null,"Saint Ann's Home, Inc.",42104866,"Day","St. Ann's Day School","2003-06-30",2,"6002C",180,180,54880.77,54880.770000000004,304.89316666666667,"2019-09-01",null,{"$f":"VLOOKUP(H180,data!$A$3:$A$269,1,FALSE)","v":"6002C"}]
[null,"Saint Ann's Home, Inc.","042104866","Res Ed","St. Ann's Residential","2003-06-30",1,"6002B",365,366,196531.41,197069.85221917808,538.44221917808215,"2019-09-01",null,{"$f":"VLOOKUP(H181,data!$A$3:$A$269,1,FALSE)","v":"6002B"}]
[null,"Saint Ann's Home, Inc.","042104866","Summer","Summer Day","2011-06-30","08","6002D",36,36,9252.5,9252.5,257.01388888888891,"2019-09-01",null,{"$f":"VLOOKUP(H182,data!$A$3:$A$269,1,FALSE)","v":"6002D"}]
[null,"Schools for Children",42730069,"Day","Dearborn Academy","2003-06-30","01","5306B",180,180,86942.778714,86942.778714,483.01543729999997,null,null,{"$f":"VLOOKUP(H183,data!$A$3:$A$269,1,FALSE)","v":"5306B"}]
[null,"Schools for Children","042730069","Summer","Dearborn Summer","2003-06-30","03","5306C",30,30,5761.71,5761.71,192.05699999999999,null,null,{"$f":"VLOOKUP(H184,data!$A$3:$A$269,1,FALSE)","v":"5306C"}]
[null,"Schools for Children","042730069","Day","Seaport Campus","2003-06-30","05","5306D",180,180,69940.679999999993,69940.679999999993,388.55933333333331,null,null,{"$f":"VLOOKUP(H185,data!$A$3:$A$269,1,FALSE)","v":"5306D"}]
[null,"Seven Hills Foundation, Inc.","043293659","Day","Groton - Clin Nursery","2004-06-30","79","5242A",251,251,50107.46,50107.46,199.63131474103585,null,null,{"$f":"VLOOKUP(H186,data!$A$3:$A$269,1,FALSE)","v":"5242A"}]
[null,"Seven Hills Foundation, Inc.","042631391","RES Ed","Stetson School","2003-06-30","610","6120A",365,366,205346.98,205909.57446575345,562.59446575342474,null,null,{"$f":"VLOOKUP(H187,data!$A$3:$A$269,1,FALSE)","v":"6120A"}]
[null,"Specialized Education Services, Inc.",273575446,"Day","High Road School of MA.","2003-06-30","1","5177G",180,180,40779.29,40779.29,226.55161111111113,null,null,{"$f":"VLOOKUP(H188,data!$A$3:$A$269,1,FALSE)","v":"5177G"}]
[null,"Specialized Education Services, Inc.",273575446,"Summer","High Road School of MA.","2003-06-30",null,"5177H",30,30,6385.09,6385.09,212.83633333333333,null,null,{"$f":"VLOOKUP(H189,data!$A$3:$A$269,1,FALSE)","v":"5177H"}]
[null,"Springdale Education Center","202007062","Day","Springdale Ed. Center","2010-06-30","01","5227A",220,220,74015.360000000001,74015.360000000001,336.43345454545454,null,null,{"$f":"VLOOKUP(H190,data!$A$3:$A$269,1,FALSE)","v":"5227A"}]
[null,"Stevens Children's Home",42105950,"Day","Stevens Home","2003-06-30","03","6121B",224,224,61936.15,61936.149999999994,276.50066964285713,null,null,{"$f":"VLOOKUP(H191,data!$A$3:$A$269,1,FALSE)","v":"6121B"}]
[null,"Stevens Children's Home","042105950","Res Ed","Stevens Home  Day Program","2003-06-30","01","6121A",365,366,182465.55,182965.45561643832,499.90561643835611,null,null,{"$f":"VLOOKUP(H192,data!$A$3:$A$269,1,FALSE)","v":"6121A"}]
[null,"Summit Academy",760845512,"Day","Sch. for Alt. Learners","2010-06-30","01","6125A",198,198,50633.14,50633.14,255.72292929292928,null,null,{"$f":"VLOOKUP(H193,data!$A$3:$A$269,1,FALSE)","v":"6125A"}]
[null,"The learning Clinic, Inc.","061023016","Day","Day",null,null,"5620B",230,{"$f":"IF(I194=365,365+1,I194)","v":230},74970.8,{"$f":"+M194*J194","v":74970.8},325.96000000000004,"2019-10-01",null,{"$f":"VLOOKUP(H194,data!$A$3:$A$269,1,FALSE)","v":"5620B"}]
[null,"The learning Clinic, Inc.","061023016","Res","Residential",null,null,"5620E",365,366,147390.75,147794.5602739726,403.81027397260272,"2019-10-01",null,{"$f":"VLOOKUP(H195,data!$A$3:$A$269,1,FALSE)","v":"5620E"}]
[null,"Valley West Day School","043220344","Day","Valley West Day School","2003-06-30","01","6185A",180,180,51589.279999999999,51589.279999999999,286.60711111111112,null,null,{"$f":"VLOOKUP(H196,data!$A$3:$A$269,1,FALSE)","v":"6185A"}]
[null,"Valley West Day School","043220344","Summer","Valley West Summer","2003-06-30","02","6185B",30,30,6149.0251350000008,6149.0251350000008,204.96750450000002,null,null,{"$f":"VLOOKUP(H197,data!$A$3:$A$269,1,FALSE)","v":"6185B"}]
[null,"Walker, Inc.",42171186,"Day","Beacon High School","2003-06-30","07","6245D",198,198,59129.87,59129.87,298.6357070707071,null,null,{"$f":"VLOOKUP(H198,data!$A$3:$A$269,1,FALSE)","v":"6245D"}]
[null,"Walker, Inc.","042171186","Res Ed","Intensive","2003-06-30","05","6245C",365,366,253867.84,254563.36832876713,695.5283287671233,null,null,{"$f":"VLOOKUP(H199,data!$A$3:$A$269,1,FALSE)","v":"6245C"}]
[null,"Walker, Inc.","042171186","Day","Walker School","2003-06-30","02","6245A",216,216,91671.96,91671.96,424.40722222222223,null,null,{"$f":"VLOOKUP(H200,data!$A$3:$A$269,1,FALSE)","v":"6245A"}]
[null,"Wayside Youth and Family Support Ntwk.","042630450","Day","Wayside Academy","2003-06-30","3.0","5985C",220,220,58163.61,58163.609999999993,264.38004545454544,"1 (FY21) ",null,{"$f":"VLOOKUP(H201,data!$A$3:$A$269,1,FALSE)","v":"5985C"}]
[null,"Wayside Youth and Family Support Ntwk.",42630450,"Res Ed","Wayside BTR","2003-06-30","2.0","5985A",365,366,180881.25,181376.81506849316,495.5650684931507,"1 (FY21) ",null,{"$f":"VLOOKUP(H202,data!$A$3:$A$269,1,FALSE)","v":"5985A"}]
[null,"Wediko Children's Services","046002778","Res Ed","Winter/Diag.","02",41090,"6124I",365,366,149775,150185.34246575343,410.34246575342468,"2019-08-01",null,{"$f":"VLOOKUP(H203,data!$A$3:$A$269,1,FALSE)","v":"6124I"}]
[null,"Wellspring Foundation, Inc","061014227","Day","Arch Bridge School Day ",null,null,"6255B",189,189,56647.08,56647.08,299.72000000000003,null,null,{"$f":"VLOOKUP(H204,data!$A$3:$A$269,1,FALSE)","v":"6255B"}]
[null,"Wellspring Foundation, Inc","061014227","Summer","Arch Bridge School Summer",null,null,"6255A",19,19,4275,4275,225,null,null,{"$f":"VLOOKUP(H205,data!$A$3:$A$269,1,FALSE)","v":"6255A"}]
[null,"Whitney Academy, Inc.","042939430","Res Ed","Intensive","2003-06-30",2,"6257B",365,366,252097.8,252788.47890410956,690.67890410958898,"1 (FY21) ",null,{"$f":"VLOOKUP(H206,data!$A$3:$A$269,1,FALSE)","v":"6257B"}]
[null,"Willie Ross School for the Deaf",42430193,"Day","Day","2003-06-30","01","5986C",180,180,59300.29,59300.29,329.44605555555557,null,null,{"$f":"VLOOKUP(H207,data!$A$3:$A$269,1,FALSE)","v":"5986C"}]
[null,"Willow Hill School",42469268,"Day","Willow Hill School","2003-06-30","1","6052A",180,180,55281.22,55281.22,307.1178888888889,null,null,{"$f":"VLOOKUP(H208,data!$A$3:$A$269,1,FALSE)","v":"6052A"}]
[null,"Wolf School","050506471","Summer","Summer ",null,null,"6263B",20,20,5800,5800,290,null,null,{"$f":"VLOOKUP(H209,data!$A$3:$A$269,1,FALSE)","v":"6263B"}]
[null,"Wolf School","050506471","Day","Wolf School","Exempt",41090,"6263A",165,165,57800,57800,350.30303030303031,null,null,{"$f":"VLOOKUP(H210,data!$A$3:$A$269,1,FALSE)","v":"6263A"}]
[null,"Youth Opportunities Upheld","237112665","Res Ed","Cottage Hill Academy","2003-06-30","34.1","5995C",365,366,195918.32,196455.08252054793,536.7625205479452,null,null,{"$f":"VLOOKUP(H211,data!$A$3:$A$269,1,FALSE)","v":"5995C"}]
[null,"Youth Opportunities Upheld",237112665,"Day","Educational Prog.","2003-06-30",19,"5995B",216,216,40646.629999999997,40646.629999999997,188.17884259259259,null,null,{"$f":"VLOOKUP(H212,data!$A$3:$A$269,1,FALSE)","v":"5995B"}]
[null,"Youth Villages-Germaine Lawrence, Inc.",581716970,"Day","Day Education","2003-06-30","11","6006D",216,216,62178.11,62178.11,287.86162037037036,null,null,{"$f":"VLOOKUP(H213,data!$A$3:$A$269,1,FALSE)","v":"6006D"}]